Workbook

Sheet ribbon
A1: 0=false | B1: Sheet | C1: getLabel | D1: getScreentip | E1: getSupertip | F1: getTitle | G1: getVisible | H1: getEnabled | I1: getPressed | J1: getSize | K1: imageMso
A2: =+O2 -> TAB001 | C2: HTQLCL | D2: 1 | E2: 1 | G2: =+IF(setting!$B$1,1,0) -> 1 | H2: 1 | I2: 1 | J2: 0 | L2: <tab id="XXXX" insertBeforeMso="TabHome" getVisible="getVisible" getLabel="getLabel"> | M2: TAB | N2: 1 | O2: =+M2&TEXT(N2,"000") -> TAB001 | P2: =+SUBSTITUTE(SUBSTITUTE(L2,"XXXX",O2),"HappyFace",IF(K2<>"",K2,"HappyFace")) -> <tab id="TAB001" insertBeforeMso="TabHome" getVisible="getVisible" getLabel="getLabel">
A3: =+O3 -> GROU001 | C3: Hệ thống | D3: 1 | E3: 1 | G3: =+IF(ISNUMBER(C3),0,1) -> 1 | H3: 1 | I3: 1 | J3: 0 | L3: <group id="XXXX" getVisible="getVisible" getLabel="getLabel"> | M3: GROU | N3: =+COUNTIF($M$3:M3,M3) -> 1 | O3: =IF(B3<>"",IF(LEFT(B3,3)<>"But","Sel_"&B3,B3),M3&TEXT(N3,"000")) -> GROU001 | P3: =+SUBSTITUTE(SUBSTITUTE(L3,"XXXX",O3),"HappyFace",IF(K3<>"",K3,"HappyFace")) -> <group id="GROU001" getVisible="getVisible" getLabel="getLabel">
A4: =+O4 -> But_TaoMoi | B4: But_TaoMoi | C4: Tạo mới | D4: =+C4 -> Tạo mới | E4: Tạo file quản lý công trình mới | G4: =+IF(ISNUMBER(C4),0,1) -> 1 | H4: 1 | I4: 1 | J4: 1 | K4: FileNew | L4: <button id="XXXX" onAction="onActionBUT" getSize="getSize" getVisible="getVisible" getLabel="getLabel" getScreentip="getScreentip" getSupertip="getSupertip" imageMso="HappyFace" getEnabled="getEnabled"/> | M4: BUTT | N4: =+COUNTIF($M$3:M4,M4) -> 1 | O4: But_TaoMoi | P4: <button id="But_TaoMoi" onAction="onActionBUT" getSize="getSize" getVisible="getVisible" getLabel="getLabel" getScreentip="getScreentip" getSupertip="getSupertip" imageMso="FileNew" getEnabled="getEnabled"/>
A5: But_Mo | B5: But_Mo | C5: Mở | D5: Mở tập tin | E5: Mở tập tin quản lý chất lượng | G5: =+IF(ISNUMBER(C5),0,1) -> 1 | H5: 1 | I5: 1 | J5: 1 | K5: FileOpen | L5: <button id="XXXX" onAction="onActionBUT" getSize="getSize" getVisible="getVisible" getLabel="getLabel" getScreentip="getScreentip" getSupertip="getSupertip" imageMso="HappyFace" getEnabled="getEnabled"/> | M5: BUTT | N5: =+COUNTIF($M$3:M5,M5) -> 2 | O5: But_Mo | P5: <button id="But_Mo" onAction="onActionBUT" getSize="getSize" getVisible="getVisible" getLabel="getLabel" getScreentip="getScreentip" getSupertip="getSupertip" imageMso="FileOpen" getEnabled="getEnabled"/>
A6: BUTT003 | C6: =+MAX($C$1:C5)+1 -> 1 | G6: 0 | H6: 1 | I6: 1 | J6: 1 | L6: <button id="XXXX" onAction="onActionBUT" getSize="getSize" getVisible="getVisible" getLabel="getLabel" getScreentip="getScreentip" getSupertip="getSupertip" imageMso="HappyFace" getEnabled="getEnabled"/> | M6: BUTT | N6: =+COUNTIF($M$3:M6,M6) -> 3 | O6: BUTT003 | P6: <button id="BUTT003" onAction="onActionBUT" getSize="getSize" getVisible="getVisible" getLabel="getLabel" getScreentip="getScreentip" getSupertip="getSupertip" imageMso="HappyFace" getEnabled="getEnabled"/>
A7: BUTT004 | C7: =+MAX($C$1:C6)+1 -> 2 | G7: 0 | H7: 1 | I7: 1 | J7: 1 | L7: <button id="XXXX" onAction="onActionBUT" getSize="getSize" getVisible="getVisible" getLabel="getLabel" getScreentip="getScreentip" getSupertip="getSupertip" imageMso="HappyFace" getEnabled="getEnabled"/> | M7: BUTT | N7: =+COUNTIF($M$3:M7,M7) -> 4 | O7: BUTT004 | P7: <button id="BUTT004" onAction="onActionBUT" getSize="getSize" getVisible="getVisible" getLabel="getLabel" getScreentip="getScreentip" getSupertip="getSupertip" imageMso="HappyFace" getEnabled="getEnabled"/>
A8: SPLI001 | C8: =+C9 -> Dữ liệu | G8: =+IF(ISNUMBER(C9),0,1) -> 1 | H8: 1 | I8: 1 | J8: 1 | L8: <splitButton id="XXXX" size="large" getVisible="getVisible" getEnabled="getEnabled"> | M8: SPLI | N8: =+COUNTIF($M$3:M8,M8) -> 1 | O8: SPLI001 | P8: <splitButton id="SPLI001" size="large" getVisible="getVisible" getEnabled="getEnabled">
A9: But_DuLieu | B9: But_DuLieu | C9: Dữ liệu | D9: Thông tin dữ liệu chương trình | E9: Nhấn vào để đi đến các Sheet | G9: 1 | H9: 1 | I9: 1 | J9: 1 | K9: DatabaseCopyDatabaseFile | L9: <button id="XXXX" onAction="onActionBUT" getLabel="getLabel" getScreentip="getScreentip" getSupertip="getSupertip" imageMso="HappyFace" getEnabled="getEnabled"/> | M9: BUTT | N9: =+COUNTIF($M$3:M9,M9) -> 5 | O9: But_DuLieu | P9: <button id="But_DuLieu" onAction="onActionBUT" getLabel="getLabel" getScreentip="getScreentip" getSupertip="getSupertip" imageMso="DatabaseCopyDatabaseFile" getEnabled="getEnabled"/>
A10: MENU001 | C10: =+MAX($C$1:C9)+1 -> 3 | G10: =+IF(ISNUMBER(C11),0,1) -> 1 | H10: 1 | I10: 1 | J10: 1 | L10: <menu id="XXXX" itemSize="normal" getLabel="getLabel" getScreentip="getScreentip" getSupertip="getSupertip" imageMso="HappyFace" getEnabled="getEnabled"> | M10: MENU | N10: =+COUNTIF($M$3:M10,M10) -> 1 | O10: MENU001 | P10: <menu id="MENU001" itemSize="normal" getLabel="getLabel" getScreentip="getScreentip" getSupertip="getSupertip" imageMso="HappyFace" getEnabled="getEnabled">
A11: Sel_MaCV | B11: MaCV | C11: Mã công việc | D11: =+C11 -> Mã công việc | G11: 1 | H11: 1 | I11: 1 | J11: 1 | K11: _1 | L11: <button id="XXXX" onAction="onActionBUT" getVisible="getVisible" getLabel="getLabel" getScreentip="getScreentip" getSupertip="getSupertip" imageMso="HappyFace" getEnabled="getEnabled"/> | M11: BUTT | N11: =+COUNTIF($M$3:M11,M11) -> 6 | O11: Sel_MaCV | P11: <button id="Sel_MaCV" onAction="onActionBUT" getVisible="getVisible" getLabel="getLabel" getScreentip="getScreentip" getSupertip="getSupertip" imageMso="_1" getEnabled="getEnabled"/>
A12: Sel_TCNT | B12: TCNT | C12: Tiêu chuẩn nghiệm thu | D12: Tiêu chuẩn nghiệm thu | G12: 1 | H12: 1 | I12: 1 | J12: 1 | K12: _2 | L12: <button id="XXXX" onAction="onActionBUT" getVisible="getVisible" getLabel="getLabel" getScreentip="getScreentip" getSupertip="getSupertip" imageMso="HappyFace" getEnabled="getEnabled"/> | M12: BUTT | N12: =+COUNTIF($M$3:M12,M12) -> 7 | O12: Sel_TCNT | P12: <button id="Sel_TCNT" onAction="onActionBUT" getVisible="getVisible" getLabel="getLabel" getScreentip="getScreentip" getSupertip="getSupertip" imageMso="_2" getEnabled="getEnabled"/>
A13: Sel_MaBBKT | B13: MaBBKT | C13: Danh mục biên bản kiểm tra | D13: Danh mục biên bản kiểm tra | G13: 1 | H13: 1 | I13: 1 | J13: 0 | K13: _3 | L13: <button id="XXXX" onAction="onActionBUT" getVisible="getVisible" getLabel="getLabel" getScreentip="getScreentip" getSupertip="getSupertip" imageMso="HappyFace" getEnabled="getEnabled"/> | M13: BUTT | N13: =+COUNTIF($M$3:M13,M13) -> 8 | O13: Sel_MaBBKT | P13: <button id="Sel_MaBBKT" onAction="onActionBUT" getVisible="getVisible" getLabel="getLabel" getScreentip="getScreentip" getSupertip="getSupertip" imageMso="_3" getEnabled="getEnabled"/>
A14: Sel_MaTN | B14: MaTN | C14: Mã thí nghiệm | D14: Mã thí nghiệm | G14: 1 | H14: 1 | I14: 1 | J14: 0 | K14: _4 | L14: <button id="XXXX" onAction="onActionBUT" getVisible="getVisible" getLabel="getLabel" getScreentip="getScreentip" getSupertip="getSupertip" imageMso="HappyFace" getEnabled="getEnabled"/> | M14: BUTT | N14: =+COUNTIF($M$3:M14,M14) -> 9 | O14: Sel_MaTN | P14: <button id="Sel_MaTN" onAction="onActionBUT" getVisible="getVisible" getLabel="getLabel" getScreentip="getScreentip" getSupertip="getSupertip" imageMso="_4" getEnabled="getEnabled"/>
A15: Sel_KQTN | B15: KQTN | C15: Kết quả thí nghiệm | D15: Kết quả thí nghiệm | G15: 1 | H15: 1 | I15: 1 | J15: 0 | K15: _5 | L15: <button id="XXXX" onAction="onActionBUT" getVisible="getVisible" getLabel="getLabel" getScreentip="getScreentip" getSupertip="getSupertip" imageMso="HappyFace" getEnabled="getEnabled"/> | M15: BUTT | N15: =+COUNTIF($M$3:M15,M15) -> 10 | O15: Sel_KQTN | P15: <button id="Sel_KQTN" onAction="onActionBUT" getVisible="getVisible" getLabel="getLabel" getScreentip="getScreentip" getSupertip="getSupertip" imageMso="_5" getEnabled="getEnabled"/>
A16: Sel_tbDinhmuc | B16: tbDinhmuc | C16: Định mức | D16: Định mức | G16: 1 | H16: 1 | I16: 1 | J16: 0 | K16: _6 | L16: <button id="XXXX" onAction="onActionBUT" getVisible="getVisible" getLabel="getLabel" getScreentip="getScreentip" getSupertip="getSupertip" imageMso="HappyFace" getEnabled="getEnabled"/> | M16: BUTT | N16: =+COUNTIF($M$3:M16,M16) -> 11 | O16: Sel_tbDinhmuc | P16: <button id="Sel_tbDinhmuc" onAction="onActionBUT" getVisible="getVisible" getLabel="getLabel" getScreentip="getScreentip" getSupertip="getSupertip" imageMso="_6" getEnabled="getEnabled"/>
A17: Sel_tbGiaCamay | B17: tbGiaCamay | C17: Danh mục máy thi công | D17: Danh mục máy thi công | G17: 1 | H17: 1 | I17: 1 | J17: 0 | K17: _7 | L17: <button id="XXXX" onAction="onActionBUT" getVisible="getVisible" getLabel="getLabel" getScreentip="getScreentip" getSupertip="getSupertip" imageMso="HappyFace" getEnabled="getEnabled"/> | M17: BUTT | N17: =+COUNTIF($M$3:M17,M17) -> 12 | O17: Sel_tbGiaCamay | P17: <button id="Sel_tbGiaCamay" onAction="onActionBUT" getVisible="getVisible" getLabel="getLabel" getScreentip="getScreentip" getSupertip="getSupertip" imageMso="_7" getEnabled="getEnabled"/>
A18: Sel_tbTHmay | B18: tbTHmay | C18: Định mức máy thi công | D18: Định mức máy thi công | G18: 1 | H18: 1 | I18: 1 | J18: 0 | K18: _8 | L18: <button id="XXXX" onAction="onActionBUT" getVisible="getVisible" getLabel="getLabel" getScreentip="getScreentip" getSupertip="getSupertip" imageMso="HappyFace" getEnabled="getEnabled"/> | M18: BUTT | N18: =+COUNTIF($M$3:M18,M18) -> 13 | O18: Sel_tbTHmay | P18: <button id="Sel_tbTHmay" onAction="onActionBUT" getVisible="getVisible" getLabel="getLabel" getScreentip="getScreentip" getSupertip="getSupertip" imageMso="_8" getEnabled="getEnabled"/>
A19: Sel_Config | B19: Config | C19: Khung giờ nghiệm thu | D19: Khung giờ nghiệm thu | G19: 1 | H19: 1 | I19: 1 | J19: 0 | K19: _9 | L19: <button id="XXXX" onAction="onActionBUT" getVisible="getVisible" getLabel="getLabel" getScreentip="getScreentip" getSupertip="getSupertip" imageMso="HappyFace" getEnabled="getEnabled"/> | M19: BUTT | N19: =+COUNTIF($M$3:M19,M19) -> 14 | O19: Sel_Config | P19: <button id="Sel_Config" onAction="onActionBUT" getVisible="getVisible" getLabel="getLabel" getScreentip="getScreentip" getSupertip="getSupertip" imageMso="_9" getEnabled="getEnabled"/>
C20: =+MAX($C$1:C19)+1 -> 4 | G20: 0 | L20: </menu> | N20: =+COUNTIF($M$3:M20,M20) -> 0 | O20: 000 | P20: =+SUBSTITUTE(SUBSTITUTE(L20,"XXXX",O20),"HappyFace",IF(K20<>"",K20,"HappyFace")) -> </menu>
C21: =+MAX($C$1:C20)+1 -> 5 | G21: 0 | L21: </splitButton> | N21: =+COUNTIF($M$3:M21,M21) -> 0 | O21: 000 | P21: </splitButton>
A22: But_CaiDatHeThong | B22: But_CaiDatHeThong | L22: <dialogBoxLauncher><button id="XXXX" onAction="onActionBUT"/></dialogBoxLauncher> | M22: BUTT | N22: =+COUNTIF($M$3:M22,M22) -> 15 | O22: But_CaiDatHeThong | P22: <dialogBoxLauncher><button id="But_CaiDatHeThong" onAction="onActionBUT"/></dialogBoxLauncher>
C23: =+MAX($C$1:C21)+1 -> 6 | G23: 0 | L23: </group> | N23: =+COUNTIF($M$3:M23,M23) -> 0 | O23: 000 | P23: </group>
A24: =+O24 -> GROU002 | C24: Thông tin | D24: =+C24 -> Thông tin | G24: 1 | H24: 1 | I24: 1 | J24: 0 | L24: <group id="XXXX" getVisible="getVisible" getLabel="getLabel"> | M24: GROU | N24: =+COUNTIF($M$3:M24,M24) -> 2 | O24: GROU002 | P24: <group id="GROU002" getVisible="getVisible" getLabel="getLabel">
A25: =+O25 -> Sel_Thongtin | B25: Thongtin | C25: Thông tin chung | D25: Thông tin chung | E25: Thông tin công trình, chủ đầu tư, Đơn vị: giám sát, thi công, thí nghiệm | G25: 1 | H25: 1 | I25: 1 | J25: 1 | K25: FunctionsRecentlyUsedtInsertGallery | L25: <button id="XXXX" onAction="onActionBUT" getSize="getSize" getVisible="getVisible" getLabel="getLabel" getScreentip="getScreentip" getSupertip="getSupertip" imageMso="HappyFace" getEnabled="getEnabled"/> | M25: BUTT | N25: =+COUNTIF($M$3:M25,M25) -> 16 | O25: Sel_Thongtin | P25: <button id="Sel_Thongtin" onAction="onActionBUT" getSize="getSize" getVisible="getVisible" getLabel="getLabel" getScreentip="getScreentip" getSupertip="getSupertip" imageMso="FunctionsRecentlyUsedtInsertGallery" getEnabled="getEnabled"/>
A26: BUTT017 | C26: =+MAX($C$1:C25)+1 -> 7 | G26: 0 | H26: 1 | I26: 1 | J26: 1 | L26: <button id="XXXX" onAction="onActionBUT" getSize="getSize" getVisible="getVisible" getLabel="getLabel" getScreentip="getScreentip" getSupertip="getSupertip" imageMso="HappyFace" getEnabled="getEnabled"/> | M26: BUTT | N26: =+COUNTIF($M$3:M26,M26) -> 17 | O26: BUTT017 | P26: <button id="BUTT017" onAction="onActionBUT" getSize="getSize" getVisible="getVisible" getLabel="getLabel" getScreentip="getScreentip" getSupertip="getSupertip" imageMso="HappyFace" getEnabled="getEnabled"/>
A27: BUTT018 | C27: =+MAX($C$1:C26)+1 -> 8 | G27: 0 | H27: 1 | I27: 1 | J27: 1 | L27: <button id="XXXX" onAction="onActionBUT" getSize="getSize" getVisible="getVisible" getLabel="getLabel" getScreentip="getScreentip" getSupertip="getSupertip" imageMso="HappyFace" getEnabled="getEnabled"/> | M27: BUTT | N27: =+COUNTIF($M$3:M27,M27) -> 18 | O27: BUTT018 | P27: <button id="BUTT018" onAction="onActionBUT" getSize="getSize" getVisible="getVisible" getLabel="getLabel" getScreentip="getScreentip" getSupertip="getSupertip" imageMso="HappyFace" getEnabled="getEnabled"/>
A28: BUTT019 | C28: =+MAX($C$1:C27)+1 -> 9 | G28: 0 | H28: 1 | I28: 1 | J28: 1 | L28: <button id="XXXX" onAction="onActionBUT" getSize="getSize" getVisible="getVisible" getLabel="getLabel" getScreentip="getScreentip" getSupertip="getSupertip" imageMso="HappyFace" getEnabled="getEnabled"/> | M28: BUTT | N28: =+COUNTIF($M$3:M28,M28) -> 19 | O28: BUTT019 | P28: <button id="BUTT019" onAction="onActionBUT" getSize="getSize" getVisible="getVisible" getLabel="getLabel" getScreentip="getScreentip" getSupertip="getSupertip" imageMso="HappyFace" getEnabled="getEnabled"/>
A29: SPLI002 | C29: =+C30 -> Thời tiết | D29: =+C29 -> Thời tiết | E29: Dữ liệu thời tiết Ngày nghỉ Nhân lực thi công | G29: =+IF(ISNUMBER(C30),0,1) -> 1 | H29: 1 | I29: 1 | J29: 1 | L29: <splitButton id="XXXX" size="large" getVisible="getVisible" getEnabled="getEnabled"> | M29: SPLI | N29: =+COUNTIF($M$3:M29,M29) -> 2 | O29: SPLI002 | P29: <splitButton id="SPLI002" size="large" getVisible="getVisible" getEnabled="getEnabled">
A30: But_ThoiTiet | B30: But_ThoiTiet | C30: Thời tiết | D30: Thời tiết | E30: Nhấn vào để di chuyển đến các sheet tương ứng | G30: 1 | H30: 1 | I30: 1 | J30: 1 | K30: PictureBrightnessGallery | L30: <button id="XXXX" onAction="onActionBUT" getLabel="getLabel" getScreentip="getScreentip" getSupertip="getSupertip" imageMso="HappyFace" getEnabled="getEnabled"/> | M30: BUTT | N30: =+COUNTIF($M$3:M30,M30) -> 20 | O30: But_ThoiTiet | P30: <button id="But_ThoiTiet" onAction="onActionBUT" getLabel="getLabel" getScreentip="getScreentip" getSupertip="getSupertip" imageMso="PictureBrightnessGallery" getEnabled="getEnabled"/>
A31: MENU002 | C31: =+MAX($C$1:C30)+1 -> 10 | G31: =+IF(ISNUMBER(C32),0,1) -> 1 | H31: 1 | I31: 1 | J31: 1 | L31: <menu id="XXXX" itemSize="normal" getLabel="getLabel" getScreentip="getScreentip" getSupertip="getSupertip" imageMso="HappyFace" getEnabled="getEnabled"> | M31: MENU | N31: =+COUNTIF($M$3:M31,M31) -> 2 | O31: MENU002 | P31: <menu id="MENU002" itemSize="normal" getLabel="getLabel" getScreentip="getScreentip" getSupertip="getSupertip" imageMso="HappyFace" getEnabled="getEnabled">
A32: Sel_tb_Thoitiet | B32: tb_Thoitiet | C32: Thời tiết thi công | D32: =+C32 -> Thời tiết thi công | E32: Bảng dữ liệu thời tiết thi công, ngày nghỉ, nhân công | G32: 1 | H32: 1 | I32: 1 | J32: 1 | K32: PictureBrightnessGallery | L32: <button id="XXXX" onAction="onActionBUT" getVisible="getVisible" getLabel="getLabel" getScreentip="getScreentip" getSupertip="getSupertip" imageMso="HappyFace" getEnabled="getEnabled"/> | M32: BUTT | N32: =+COUNTIF($M$3:M32,M32) -> 21 | O32: Sel_tb_Thoitiet | P32: <button id="Sel_tb_Thoitiet" onAction="onActionBUT" getVisible="getVisible" getLabel="getLabel" getScreentip="getScreentip" getSupertip="getSupertip" imageMso="PictureBrightnessGallery" getEnabled="getEnabled"/>
A33: But_CapNhatThoiTiet | B33: But_CapNhatThoiTiet | C33: Cập nhật thời tiết | D33: Cập nhật thời tiết | E33: Cập nhật lại dữ liệu thời tiết tại địa điểm thi công | G33: 1 | H33: 1 | I33: 1 | J33: 1 | K33: TableIndexes | L33: <button id="XXXX" onAction="onActionBUT" getVisible="getVisible" getLabel="getLabel" getScreentip="getScreentip" getSupertip="getSupertip" imageMso="HappyFace" getEnabled="getEnabled"/> | M33: BUTT | N33: =+COUNTIF($M$3:M33,M33) -> 22 | O33: But_CapNhatThoiTiet | P33: <button id="But_CapNhatThoiTiet" onAction="onActionBUT" getVisible="getVisible" getLabel="getLabel" getScreentip="getScreentip" getSupertip="getSupertip" imageMso="TableIndexes" getEnabled="getEnabled"/>
A34: Sel_DataWeather | B34: DataWeather | C34: Trạm quan trắc | D34: Trạm quan trắc | E34: Dữ liệu trạm quan trắc thời tiết các tỉnh thành, địa phương | G34: 1 | H34: 1 | I34: 1 | J34: 0 | K34: ShowTimeZones | L34: <button id="XXXX" onAction="onActionBUT" getVisible="getVisible" getLabel="getLabel" getScreentip="getScreentip" getSupertip="getSupertip" imageMso="HappyFace" getEnabled="getEnabled"/> | M34: BUTT | N34: =+COUNTIF($M$3:M34,M34) -> 23 | O34: Sel_DataWeather | P34: <button id="Sel_DataWeather" onAction="onActionBUT" getVisible="getVisible" getLabel="getLabel" getScreentip="getScreentip" getSupertip="getSupertip" imageMso="ShowTimeZones" getEnabled="getEnabled"/>
C35: =+MAX($C$1:C34)+1 -> 11 | G35: =+IF(ISNUMBER(C35),0,1) -> 0 | L35: </menu> | O35: =IF(B35<>"",IF(LEFT(B35,3)<>"But","Sel_"&B35,B35),M35&TEXT(N35,"000")) -> 000 | P35: =+SUBSTITUTE(SUBSTITUTE(L35,"XXXX",O35),"HappyFace",IF(K35<>"",K35,"HappyFace")) -> </menu>
C36: =+MAX($C$1:C35)+1 -> 12 | G36: 0 | L36: </splitButton> | O36: 000 | P36: </splitButton>
A37: =+O37 -> SPLI003 | C37: =+C38 -> Dữ liệu công trình | G37: =+IF(ISNUMBER(C38),0,1) -> 1 | H37: 1 | I37: 1 | J37: 1 | L37: <splitButton id="XXXX" size="large" getVisible="getVisible" getEnabled="getEnabled"> | M37: SPLI | N37: =+COUNTIF($M$3:M37,M37) -> 3 | O37: SPLI003 | P37: <splitButton id="SPLI003" size="large" getVisible="getVisible" getEnabled="getEnabled">
A38: But_DuLieuCongTrinh | B38: But_DuLieuCongTrinh | C38: Dữ liệu công trình | D38: =+C38 -> Dữ liệu công trình | E38: Nhấn vào để di chuyển đến các sheet tương ứng | G38: 1 | H38: 1 | I38: 1 | J38: 1 | K38: TranslationToolTip | L38: <button id="XXXX" onAction="onActionBUT" getLabel="getLabel" getScreentip="getScreentip" getSupertip="getSupertip" imageMso="HappyFace" getEnabled="getEnabled"/> | M38: BUTT | N38: =+COUNTIF($M$3:M38,M38) -> 24 | O38: But_DuLieuCongTrinh | P38: <button id="But_DuLieuCongTrinh" onAction="onActionBUT" getLabel="getLabel" getScreentip="getScreentip" getSupertip="getSupertip" imageMso="TranslationToolTip" getEnabled="getEnabled"/>
A39: MENU003 | C39: =+MAX($C$1:C38)+1 -> 13 | G39: =+IF(ISNUMBER(C40),0,1) -> 1 | H39: 1 | I39: 1 | J39: 1 | L39: <menu id="XXXX" itemSize="normal" getLabel="getLabel" getScreentip="getScreentip" getSupertip="getSupertip" imageMso="HappyFace" getEnabled="getEnabled"> | M39: MENU | N39: =+COUNTIF($M$3:M39,M39) -> 3 | O39: MENU003 | P39: <menu id="MENU003" itemSize="normal" getLabel="getLabel" getScreentip="getScreentip" getSupertip="getSupertip" imageMso="HappyFace" getEnabled="getEnabled">
A40: Sel_TPCPBT | B40: TPCPBT | C40: Dữ liệu cấp phối | D40: =+C40 -> Dữ liệu cấp phối | E40: Dữ liệu thiết kế cấp phối bê tông | G40: 1 | H40: 1 | I40: 1 | J40: 1 | K40: _1 | L40: <button id="XXXX" onAction="onActionBUT" getVisible="getVisible" getLabel="getLabel" getScreentip="getScreentip" getSupertip="getSupertip" imageMso="HappyFace" getEnabled="getEnabled"/> | M40: BUTT | N40: =+COUNTIF($M$3:M40,M40) -> 25 | O40: Sel_TPCPBT | P40: <button id="Sel_TPCPBT" onAction="onActionBUT" getVisible="getVisible" getLabel="getLabel" getScreentip="getScreentip" getSupertip="getSupertip" imageMso="_1" getEnabled="getEnabled"/>
A41: Sel_Vatlieu | B41: Vatlieu | C41: Dữ liệu vật liệu | D41: Dữ liệu vật liệu | E41: Dữ liệu nghiệm thu vật liệu đầu vào | G41: 1 | H41: 1 | I41: 1 | J41: 1 | K41: _2 | L41: <button id="XXXX" onAction="onActionBUT" getVisible="getVisible" getLabel="getLabel" getScreentip="getScreentip" getSupertip="getSupertip" imageMso="HappyFace" getEnabled="getEnabled"/> | M41: BUTT | N41: =+COUNTIF($M$3:M41,M41) -> 26 | O41: Sel_Vatlieu | P41: <button id="Sel_Vatlieu" onAction="onActionBUT" getVisible="getVisible" getLabel="getLabel" getScreentip="getScreentip" getSupertip="getSupertip" imageMso="_2" getEnabled="getEnabled"/>
A42: Sel_TbVatlieu | B42: TbVatlieu | C42: Bảng thống kê vật liệu | D42: Bảng thống kê vật liệu | G42: 1 | H42: 1 | I42: 1 | J42: 0 | K42: _3 | L42: <button id="XXXX" onAction="onActionBUT" getVisible="getVisible" getLabel="getLabel" getScreentip="getScreentip" getSupertip="getSupertip" imageMso="HappyFace" getEnabled="getEnabled"/> | M42: BUTT | N42: =+COUNTIF($M$3:M42,M42) -> 27 | O42: Sel_TbVatlieu | P42: <button id="Sel_TbVatlieu" onAction="onActionBUT" getVisible="getVisible" getLabel="getLabel" getScreentip="getScreentip" getSupertip="getSupertip" imageMso="_3" getEnabled="getEnabled"/>
A43: Sel_TbKTHH_HM | B43: TbKTHH_HM | C43: Dữ liệu KTHH đào đất hố móng | D43: Dữ liệu KTHH đào đất hố móng | E43: Dữ liệu đào đất nền đường, đào móng, …. | G43: 1 | H43: 1 | I43: 1 | J43: 0 | K43: _4 | L43: <button id="XXXX" onAction="onActionBUT" getVisible="getVisible" getLabel="getLabel" getScreentip="getScreentip" getSupertip="getSupertip" imageMso="HappyFace" getEnabled="getEnabled"/> | M43: BUTT | N43: =+COUNTIF($M$3:M43,M43) -> 28 | O43: Sel_TbKTHH_HM | P43: <button id="Sel_TbKTHH_HM" onAction="onActionBUT" getVisible="getVisible" getLabel="getLabel" getScreentip="getScreentip" getSupertip="getSupertip" imageMso="_4" getEnabled="getEnabled"/>
A44: Sel_TbKTHH_Dap | B44: TbKTHH_Dap | C44: Dữ liệu KTHH đắp đất | D44: Dữ liệu KTHH đắp đất | E44: Dữ liệu đắp đất nền đường, đắp móng, …. | G44: 1 | H44: 1 | I44: 1 | J44: 0 | K44: _5 | L44: <button id="XXXX" onAction="onActionBUT" getVisible="getVisible" getLabel="getLabel" getScreentip="getScreentip" getSupertip="getSupertip" imageMso="HappyFace" getEnabled="getEnabled"/> | M44: BUTT | N44: =+COUNTIF($M$3:M44,M44) -> 29 | O44: Sel_TbKTHH_Dap | P44: <button id="Sel_TbKTHH_Dap" onAction="onActionBUT" getVisible="getVisible" getLabel="getLabel" getScreentip="getScreentip" getSupertip="getSupertip" imageMso="_5" getEnabled="getEnabled"/>
A45: Sel_TbDongCoc | B45: TbDongCoc | C45: Dữ liệu đóng cọc bê tông (BS) | D45: Dữ liệu đóng cọc bê tông (BS) | E45: Dữ liệu đóng cọc bê tông | G45: 1 | H45: 1 | I45: 1 | J45: 0 | K45: _6 | L45: <button id="XXXX" onAction="onActionBUT" getVisible="getVisible" getLabel="getLabel" getScreentip="getScreentip" getSupertip="getSupertip" imageMso="HappyFace" getEnabled="getEnabled"/> | M45: BUTT | N45: =+COUNTIF($M$3:M45,M45) -> 30 | O45: Sel_TbDongCoc | P45: <button id="Sel_TbDongCoc" onAction="onActionBUT" getVisible="getVisible" getLabel="getLabel" getScreentip="getScreentip" getSupertip="getSupertip" imageMso="_6" getEnabled="getEnabled"/>
A46: Sel_TbKhoanCoc | B46: TbKhoanCoc | C46: Dữ liệu khoan cọc bê tông (BS) | D46: Dữ liệu khoan cọc bê tông (BS) | E46: Dữ liệu khoan cọc xi măng đất…. | G46: 1 | H46: 1 | I46: 1 | J46: 0 | K46: _7 | L46: <button id="XXXX" onAction="onActionBUT" getVisible="getVisible" getLabel="getLabel" getScreentip="getScreentip" getSupertip="getSupertip" imageMso="HappyFace" getEnabled="getEnabled"/> | M46: BUTT | N46: =+COUNTIF($M$3:M46,M46) -> 31 | O46: Sel_TbKhoanCoc | P46: <button id="Sel_TbKhoanCoc" onAction="onActionBUT" getVisible="getVisible" getLabel="getLabel" getScreentip="getScreentip" getSupertip="getSupertip" imageMso="_7" getEnabled="getEnabled"/>
A47: Sel_TbDongCuTram | B47: TbDongCuTram | C47: Dữ liệu đóng cừ tràm (BS) | D47: Dữ liệu đóng cừ tràm (BS) | E47: Dữ liệu đóng cừ tràm | G47: 1 | H47: 1 | I47: 1 | J47: 0 | K47: _8 | L47: <button id="XXXX" onAction="onActionBUT" getVisible="getVisible" getLabel="getLabel" getScreentip="getScreentip" getSupertip="getSupertip" imageMso="HappyFace" getEnabled="getEnabled"/> | M47: BUTT | N47: =+COUNTIF($M$3:M47,M47) -> 32 | O47: Sel_TbDongCuTram | P47: <button id="Sel_TbDongCuTram" onAction="onActionBUT" getVisible="getVisible" getLabel="getLabel" getScreentip="getScreentip" getSupertip="getSupertip" imageMso="_8" getEnabled="getEnabled"/>
A48: Sel_TbKTHH_Cp | B48: TbKTHH_Cp | C48: Dữ liệu cốt pha | D48: Dữ liệu cốt pha | E48: Dữ liệu lắp đặt ván khuôn | G48: 1 | H48: 1 | I48: 1 | J48: 0 | K48: _9 | L48: <button id="XXXX" onAction="onActionBUT" getVisible="getVisible" getLabel="getLabel" getScreentip="getScreentip" getSupertip="getSupertip" imageMso="HappyFace" getEnabled="getEnabled"/> | M48: BUTT | N48: =+COUNTIF($M$3:M48,M48) -> 33 | O48: Sel_TbKTHH_Cp | P48: <button id="Sel_TbKTHH_Cp" onAction="onActionBUT" getVisible="getVisible" getLabel="getLabel" getScreentip="getScreentip" getSupertip="getSupertip" imageMso="_9" getEnabled="getEnabled"/>
A49: Sel_TbKTHH_Ct | B49: TbKTHH_Ct | C49: Dữ liệu cốt thép | D49: Dữ liệu cốt thép | E49: Dữ liệu lắp đặt cốt thép | G49: 1 | H49: 1 | I49: 1 | J49: 0 | K49: _0 | L49: <button id="XXXX" onAction="onActionBUT" getVisible="getVisible" getLabel="getLabel" getScreentip="getScreentip" getSupertip="getSupertip" imageMso="HappyFace" getEnabled="getEnabled"/> | M49: BUTT | N49: =+COUNTIF($M$3:M49,M49) -> 34 | O49: Sel_TbKTHH_Ct | P49: <button id="Sel_TbKTHH_Ct" onAction="onActionBUT" getVisible="getVisible" getLabel="getLabel" getScreentip="getScreentip" getSupertip="getSupertip" imageMso="_0" getEnabled="getEnabled"/>
A50: Sel_TbKTHH_BT | B50: TbKTHH_BT | C50: Dữ liệu KTHH bê tông | D50: =+C50 -> Dữ liệu KTHH bê tông | E50: Dữ liệu kích thước hình học | G50: 1 | H50: 1 | I50: 1 | J50: 0 | K50: _1 | L50: <button id="XXXX" onAction="onActionBUT" getVisible="getVisible" getLabel="getLabel" getScreentip="getScreentip" getSupertip="getSupertip" imageMso="HappyFace" getEnabled="getEnabled"/> | M50: BUTT | N50: =+COUNTIF($M$3:M50,M50) -> 35 | O50: Sel_TbKTHH_BT | P50: <button id="Sel_TbKTHH_BT" onAction="onActionBUT" getVisible="getVisible" getLabel="getLabel" getScreentip="getScreentip" getSupertip="getSupertip" imageMso="_1" getEnabled="getEnabled"/>
A51: Sel_TbKTHH_SDD | B51: TbKTHH_SDD | C51: Dữ liệu sổ đo đạc (BS) | D51: =+C51 -> Dữ liệu sổ đo đạc (BS) | E51: Dữ liệu sổ đo đạc kích thước hình học | G51: 1 | H51: 1 | I51: 1 | J51: 0 | K51: _2 | L51: <button id="XXXX" onAction="onActionBUT" getVisible="getVisible" getLabel="getLabel" getScreentip="getScreentip" getSupertip="getSupertip" imageMso="HappyFace" getEnabled="getEnabled"/> | M51: BUTT | N51: =+COUNTIF($M$3:M51,M51) -> 36 | O51: Sel_TbKTHH_SDD | P51: <button id="Sel_TbKTHH_SDD" onAction="onActionBUT" getVisible="getVisible" getLabel="getLabel" getScreentip="getScreentip" getSupertip="getSupertip" imageMso="_2" getEnabled="getEnabled"/>
C52: =+MAX($C$1:C51)+1 -> 14 | G52: 0 | L52: </menu> | O52: 000 | P52: </menu>
C53: =+MAX($C$1:C52)+1 -> 15 | G53: 0 | L53: </splitButton> | O53: 000 | P53: </splitButton>
A54: =+O54 -> But_CaiDatThongTin | B54: But_CaiDatThongTin | L54: <dialogBoxLauncher><button id="XXXX" onAction="onActionBUT"/></dialogBoxLauncher> | M54: BUTT | N54: =+COUNTIF($M$3:M54,M54) -> 37 | O54: But_CaiDatThongTin | P54: <dialogBoxLauncher><button id="But_CaiDatThongTin" onAction="onActionBUT"/></dialogBoxLauncher>
C55: =+MAX($C$1:C53)+1 -> 16 | G55: 0 | L55: </group> | O55: 000 | P55: </group>
A56: =+O56 -> GROU003 | C56: Hạng mục thi công | D56: =+C56 -> Hạng mục thi công | G56: 1 | H56: 1 | I56: 1 | J56: 0 | L56: <group id="XXXX" getVisible="getVisible" getLabel="getLabel"> | M56: GROU | N56: =+COUNTIF($M$3:M56,M56) -> 3 | O56: GROU003 | P56: <group id="GROU003" getVisible="getVisible" getLabel="getLabel">
A57: =+O57 -> Sel_Nhattrinh | B57: Nhattrinh | C57: Nhật trình | D57: Nhật trình | E57: Bảng dữ liệu công việc thi công | G57: 1 | H57: 1 | I57: 1 | J57: 1 | K57: OpenStartPage | L57: <button id="XXXX" onAction="onActionBUT" getSize="getSize" getVisible="getVisible" getLabel="getLabel" getScreentip="getScreentip" getSupertip="getSupertip" imageMso="HappyFace" getEnabled="getEnabled"/> | M57: BUTT | N57: =+COUNTIF($M$3:M57,M57) -> 38 | O57: Sel_Nhattrinh | P57: <button id="Sel_Nhattrinh" onAction="onActionBUT" getSize="getSize" getVisible="getVisible" getLabel="getLabel" getScreentip="getScreentip" getSupertip="getSupertip" imageMso="OpenStartPage" getEnabled="getEnabled"/>
A58: But_Kiemtrangay | B58: But_Kiemtrangay | C58: Kiểm tra ngày | D58: Kiểm tra ngày | E58: Kiểm tra ngày tháng thi công có đụng ngày nghỉ không, nếu có sẽ được ký hiệu lại để sửa chữa | G58: 1 | H58: 1 | I58: 1 | J58: 1 | K58: ZoomToSelection | L58: <button id="XXXX" onAction="onActionBUT" getSize="getSize" getVisible="getVisible" getLabel="getLabel" getScreentip="getScreentip" getSupertip="getSupertip" imageMso="HappyFace" getEnabled="getEnabled"/> | M58: BUTT | N58: =+COUNTIF($M$3:M58,M58) -> 39 | O58: But_Kiemtrangay | P58: <button id="But_Kiemtrangay" onAction="onActionBUT" getSize="getSize" getVisible="getVisible" getLabel="getLabel" getScreentip="getScreentip" getSupertip="getSupertip" imageMso="ZoomToSelection" getEnabled="getEnabled"/>
A59: But_XuatNhatKy | B59: But_XuatNhatKy | C59: Xuất nhật ký | D59: Xuất nhật ký | G59: 1 | H59: 1 | I59: 1 | J59: 1 | K59: ConvertTableToText | L59: <button id="XXXX" onAction="onActionBUT" getSize="getSize" getVisible="getVisible" getLabel="getLabel" getScreentip="getScreentip" getSupertip="getSupertip" imageMso="HappyFace" getEnabled="getEnabled"/> | M59: BUTT | N59: =+COUNTIF($M$3:M59,M59) -> 40 | O59: But_XuatNhatKy | P59: <button id="But_XuatNhatKy" onAction="onActionBUT" getSize="getSize" getVisible="getVisible" getLabel="getLabel" getScreentip="getScreentip" getSupertip="getSupertip" imageMso="ConvertTableToText" getEnabled="getEnabled"/>
A60: BUTT041 | C60: =+MAX($C$1:C59)+1 -> 17 | G60: 0 | H60: 1 | I60: 1 | J60: 1 | L60: <button id="XXXX" onAction="onActionBUT" getSize="getSize" getVisible="getVisible" getLabel="getLabel" getScreentip="getScreentip" getSupertip="getSupertip" imageMso="HappyFace" getEnabled="getEnabled"/> | M60: BUTT | N60: =+COUNTIF($M$3:M60,M60) -> 41 | O60: BUTT041 | P60: <button id="BUTT041" onAction="onActionBUT" getSize="getSize" getVisible="getVisible" getLabel="getLabel" getScreentip="getScreentip" getSupertip="getSupertip" imageMso="HappyFace" getEnabled="getEnabled"/>
A61: SPLI004 | C61: Xuất biên bản | G61: =+IF(ISNUMBER(C62),0,1) -> 1 | H61: 1 | I61: 1 | J61: 1 | K61: ReviewReplyWithChanges | L61: <splitButton id="XXXX" size="large" getVisible="getVisible" getEnabled="getEnabled"> | M61: SPLI | N61: =+COUNTIF($M$3:M61,M61) -> 4 | O61: SPLI004 | P61: <splitButton id="SPLI004" size="large" getVisible="getVisible" getEnabled="getEnabled">
A62: But_XuatBB | B62: But_XuatBB | C62: Xuất biên bản | D62: =+C62 -> Xuất biên bản | G62: 1 | H62: 1 | I62: 1 | J62: 1 | K62: CreateReportFromWizard | L62: <button id="XXXX" onAction="onActionBUT" getLabel="getLabel" getScreentip="getScreentip" getSupertip="getSupertip" imageMso="HappyFace" getEnabled="getEnabled"/> | M62: BUTT | N62: =+COUNTIF($M$3:M62,M62) -> 42 | O62: But_XuatBB | P62: <button id="But_XuatBB" onAction="onActionBUT" getLabel="getLabel" getScreentip="getScreentip" getSupertip="getSupertip" imageMso="CreateReportFromWizard" getEnabled="getEnabled"/>
A63: MENU004 | C63: =+MAX($C$1:C62)+1 -> 18 | G63: =+IF(ISNUMBER(C64),0,1) -> 1 | H63: 1 | I63: 1 | J63: 1 | L63: <menu id="XXXX" itemSize="normal" getLabel="getLabel" getScreentip="getScreentip" getSupertip="getSupertip" imageMso="HappyFace" getEnabled="getEnabled"> | M63: MENU | N63: =+COUNTIF($M$3:M63,M63) -> 4 | O63: MENU004 | P63: <menu id="MENU004" itemSize="normal" getLabel="getLabel" getScreentip="getScreentip" getSupertip="getSupertip" imageMso="HappyFace" getEnabled="getEnabled">
A64: But_Xuattheohangmuc | B64: But_Xuattheohangmuc | C64: Theo hạng mục | D64: =+C64 -> Theo hạng mục | E64: Xuấ theo hạng mục công việc | G64: 1 | H64: 1 | I64: 1 | J64: 1 | K64: ReviewReplyWithChanges | L64: <button id="XXXX" onAction="onActionBUT" getVisible="getVisible" getLabel="getLabel" getScreentip="getScreentip" getSupertip="getSupertip" imageMso="HappyFace" getEnabled="getEnabled"/> | M64: BUTT | N64: =+COUNTIF($M$3:M64,M64) -> 43 | O64: But_Xuattheohangmuc | P64: <button id="But_Xuattheohangmuc" onAction="onActionBUT" getVisible="getVisible" getLabel="getLabel" getScreentip="getScreentip" getSupertip="getSupertip" imageMso="ReviewReplyWithChanges" getEnabled="getEnabled"/>
A65: But_Xuattheongaythang | B65: But_Xuattheongaythang | C65: Theo ngày thi công | D65: Theo ngày thi công | E65: Xuất theo ngày thi công | G65: 1 | H65: 1 | I65: 1 | J65: 1 | K65: SlideShowRehearseTimings | L65: <button id="XXXX" onAction="onActionBUT" getVisible="getVisible" getLabel="getLabel" getScreentip="getScreentip" getSupertip="getSupertip" imageMso="HappyFace" getEnabled="getEnabled"/> | M65: BUTT | N65: =+COUNTIF($M$3:M65,M65) -> 44 | O65: But_Xuattheongaythang | P65: <button id="But_Xuattheongaythang" onAction="onActionBUT" getVisible="getVisible" getLabel="getLabel" getScreentip="getScreentip" getSupertip="getSupertip" imageMso="SlideShowRehearseTimings" getEnabled="getEnabled"/>
C66: =+MAX($C$1:C65)+1 -> 19 | G66: =+IF(ISNUMBER(C66),0,1) -> 0 | L66: </menu> | O66: =IF(B66<>"",IF(LEFT(B66,3)<>"But","Sel_"&B66,B66),M66&TEXT(N66,"000")) -> 000 | P66: =+SUBSTITUTE(SUBSTITUTE(L66,"XXXX",O66),"HappyFace",IF(K66<>"",K66,"HappyFace")) -> </menu>
C67: =+MAX($C$1:C66)+1 -> 20 | G67: 0 | L67: </splitButton> | O67: 000 | P67: </splitButton>
A68: =+O68 -> But_CaiDatHangMuc | B68: But_CaiDatHangMuc | L68: <dialogBoxLauncher><button id="XXXX" onAction="onActionBUT"/></dialogBoxLauncher> | M68: BUTT | N68: =+COUNTIF($M$3:M68,M68) -> 45 | O68: But_CaiDatHangMuc | P68: <dialogBoxLauncher><button id="But_CaiDatHangMuc" onAction="onActionBUT"/></dialogBoxLauncher>
C69: =+MAX($C$1:C67)+1 -> 21 | G69: 0 | L69: </group> | O69: 000 | P69: </group>
A70: =+O70 -> GROU004 | C70: Xem | D70: =+C70 -> Xem | G70: 1 | H70: 1 | I70: 1 | J70: 0 | L70: <group id="XXXX" getVisible="getVisible" getLabel="getLabel"> | M70: GROU | N70: =+COUNTIF($M$3:M70,M70) -> 4 | O70: GROU004 | P70: <group id="GROU004" getVisible="getVisible" getLabel="getLabel">
A71: =+O71 -> BUTT046 | C71: =+MAX($C$1:C70)+1 -> 22 | G71: 0 | H71: 1 | I71: 1 | J71: 1 | L71: <button id="XXXX" onAction="onActionBUT" getSize="getSize" getVisible="getVisible" getLabel="getLabel" getScreentip="getScreentip" getSupertip="getSupertip" imageMso="HappyFace" getEnabled="getEnabled"/> | M71: BUTT | N71: =+COUNTIF($M$3:M71,M71) -> 46 | O71: BUTT046 | P71: <button id="BUTT046" onAction="onActionBUT" getSize="getSize" getVisible="getVisible" getLabel="getLabel" getScreentip="getScreentip" getSupertip="getSupertip" imageMso="HappyFace" getEnabled="getEnabled"/>
A72: BUTT047 | C72: =+MAX($C$1:C71)+1 -> 23 | G72: 0 | H72: 1 | I72: 1 | J72: 1 | L72: <button id="XXXX" onAction="onActionBUT" getSize="getSize" getVisible="getVisible" getLabel="getLabel" getScreentip="getScreentip" getSupertip="getSupertip" imageMso="HappyFace" getEnabled="getEnabled"/> | M72: BUTT | N72: =+COUNTIF($M$3:M72,M72) -> 47 | O72: BUTT047 | P72: <button id="BUTT047" onAction="onActionBUT" getSize="getSize" getVisible="getVisible" getLabel="getLabel" getScreentip="getScreentip" getSupertip="getSupertip" imageMso="HappyFace" getEnabled="getEnabled"/>
A73: BUTT048 | C73: =+MAX($C$1:C72)+1 -> 24 | G73: 0 | H73: 1 | I73: 1 | J73: 1 | L73: <button id="XXXX" onAction="onActionBUT" getSize="getSize" getVisible="getVisible" getLabel="getLabel" getScreentip="getScreentip" getSupertip="getSupertip" imageMso="HappyFace" getEnabled="getEnabled"/> | M73: BUTT | N73: =+COUNTIF($M$3:M73,M73) -> 48 | O73: BUTT048 | P73: <button id="BUTT048" onAction="onActionBUT" getSize="getSize" getVisible="getVisible" getLabel="getLabel" getScreentip="getScreentip" getSupertip="getSupertip" imageMso="HappyFace" getEnabled="getEnabled"/>
A74: BUTT049 | C74: =+MAX($C$1:C73)+1 -> 25 | G74: 0 | H74: 1 | I74: 1 | J74: 1 | L74: <button id="XXXX" onAction="onActionBUT" getSize="getSize" getVisible="getVisible" getLabel="getLabel" getScreentip="getScreentip" getSupertip="getSupertip" imageMso="HappyFace" getEnabled="getEnabled"/> | M74: BUTT | N74: =+COUNTIF($M$3:M74,M74) -> 49 | O74: BUTT049 | P74: <button id="BUTT049" onAction="onActionBUT" getSize="getSize" getVisible="getVisible" getLabel="getLabel" getScreentip="getScreentip" getSupertip="getSupertip" imageMso="HappyFace" getEnabled="getEnabled"/>
A75: SPLI005 | C75: =+MAX($C$1:C74)+1 -> 26 | G75: =+IF(ISNUMBER(C76),0,1) -> 1 | H75: 1 | I75: 1 | J75: 1 | L75: <splitButton id="XXXX" size="large" getVisible="getVisible" getEnabled="getEnabled"> | M75: SPLI | N75: =+COUNTIF($M$3:M75,M75) -> 5 | O75: SPLI005 | P75: <splitButton id="SPLI005" size="large" getVisible="getVisible" getEnabled="getEnabled">
A76: But_ListBienBan | B76: But_ListBienBan | C76: List Biên bản | D76: =+C76 -> List Biên bản | E76: Nhấn vào để di chuyển đến các sheet tương ứng | G76: 1 | H76: 1 | I76: 1 | J76: 1 | K76: FunctionsFinancialInsertGallery | L76: <button id="XXXX" onAction="onActionBUT" getLabel="getLabel" getScreentip="getScreentip" getSupertip="getSupertip" imageMso="HappyFace" getEnabled="getEnabled"/> | M76: BUTT | N76: =+COUNTIF($M$3:M76,M76) -> 50 | O76: But_ListBienBan | P76: <button id="But_ListBienBan" onAction="onActionBUT" getLabel="getLabel" getScreentip="getScreentip" getSupertip="getSupertip" imageMso="FunctionsFinancialInsertGallery" getEnabled="getEnabled"/>
A77: MENU005 | C77: =+MAX($C$1:C76)+1 -> 27 | G77: =+IF(ISNUMBER(C78),0,1) -> 1 | H77: 1 | I77: 1 | J77: 1 | L77: <menu id="XXXX" itemSize="normal" getLabel="getLabel" getScreentip="getScreentip" getSupertip="getSupertip" imageMso="HappyFace" getEnabled="getEnabled"> | M77: MENU | N77: =+COUNTIF($M$3:M77,M77) -> 5 | O77: MENU005 | P77: <menu id="MENU005" itemSize="normal" getLabel="getLabel" getScreentip="getScreentip" getSupertip="getSupertip" imageMso="HappyFace" getEnabled="getEnabled">
A78: Sel_ListBBCV | B78: ListBBCV | C78: List Biên bản công việc | D78: =+C78 -> List Biên bản công việc | G78: 1 | H78: 1 | I78: 1 | J78: 1 | K78: _1 | L78: <button id="XXXX" onAction="onActionBUT" getVisible="getVisible" getLabel="getLabel" getScreentip="getScreentip" getSupertip="getSupertip" imageMso="HappyFace" getEnabled="getEnabled"/> | M78: BUTT | N78: =+COUNTIF($M$3:M78,M78) -> 51 | O78: Sel_ListBBCV | P78: <button id="Sel_ListBBCV" onAction="onActionBUT" getVisible="getVisible" getLabel="getLabel" getScreentip="getScreentip" getSupertip="getSupertip" imageMso="_1" getEnabled="getEnabled"/>
A79: Sel_ListBBHT | B79: ListBBHT | C79: List Biên bản hoàn thành | D79: List Biên bản hoàn thành | G79: 1 | H79: 1 | I79: 1 | J79: 1 | K79: _2 | L79: <button id="XXXX" onAction="onActionBUT" getVisible="getVisible" getLabel="getLabel" getScreentip="getScreentip" getSupertip="getSupertip" imageMso="HappyFace" getEnabled="getEnabled"/> | M79: BUTT | N79: =+COUNTIF($M$3:M79,M79) -> 52 | O79: Sel_ListBBHT | P79: <button id="Sel_ListBBHT" onAction="onActionBUT" getVisible="getVisible" getLabel="getLabel" getScreentip="getScreentip" getSupertip="getSupertip" imageMso="_2" getEnabled="getEnabled"/>
A80: Sel_ListVlieu | B80: ListVlieu | C80: List Biên bản nghiệm thu vật liệu | D80: List Biên bản nghiệm thu vật liệu | G80: 1 | H80: 1 | I80: 1 | J80: 0 | K80: _3 | L80: <button id="XXXX" onAction="onActionBUT" getVisible="getVisible" getLabel="getLabel" getScreentip="getScreentip" getSupertip="getSupertip" imageMso="HappyFace" getEnabled="getEnabled"/> | M80: BUTT | N80: =+COUNTIF($M$3:M80,M80) -> 53 | O80: Sel_ListVlieu | P80: <button id="Sel_ListVlieu" onAction="onActionBUT" getVisible="getVisible" getLabel="getLabel" getScreentip="getScreentip" getSupertip="getSupertip" imageMso="_3" getEnabled="getEnabled"/>
A81: Sel_ListTN | B81: ListTN | C81: List Thí nghiệm (Tổng) | D81: List Thí nghiệm (Tổng) | G81: 1 | H81: 1 | I81: 1 | J81: 0 | K81: _4 | L81: <button id="XXXX" onAction="onActionBUT" getVisible="getVisible" getLabel="getLabel" getScreentip="getScreentip" getSupertip="getSupertip" imageMso="HappyFace" getEnabled="getEnabled"/> | M81: BUTT | N81: =+COUNTIF($M$3:M81,M81) -> 54 | O81: Sel_ListTN | P81: <button id="Sel_ListTN" onAction="onActionBUT" getVisible="getVisible" getLabel="getLabel" getScreentip="getScreentip" getSupertip="getSupertip" imageMso="_4" getEnabled="getEnabled"/>
A82: Sel_ListTNVL | B82: ListTNVL | C82: List Thí nghiệm vật liệu | D82: List Thí nghiệm vật liệu | G82: 1 | H82: 1 | I82: 1 | J82: 0 | K82: _5 | L82: <button id="XXXX" onAction="onActionBUT" getVisible="getVisible" getLabel="getLabel" getScreentip="getScreentip" getSupertip="getSupertip" imageMso="HappyFace" getEnabled="getEnabled"/> | M82: BUTT | N82: =+COUNTIF($M$3:M82,M82) -> 55 | O82: Sel_ListTNVL | P82: <button id="Sel_ListTNVL" onAction="onActionBUT" getVisible="getVisible" getLabel="getLabel" getScreentip="getScreentip" getSupertip="getSupertip" imageMso="_5" getEnabled="getEnabled"/>
A83: Sel_ListTNBT | B83: ListTNBT | C83: List Thí nghiệm bê tông và vữa | D83: List Thí nghiệm bê tông và vữa | G83: 1 | H83: 1 | I83: 1 | J83: 0 | K83: _6 | L83: <button id="XXXX" onAction="onActionBUT" getVisible="getVisible" getLabel="getLabel" getScreentip="getScreentip" getSupertip="getSupertip" imageMso="HappyFace" getEnabled="getEnabled"/> | M83: BUTT | N83: =+COUNTIF($M$3:M83,M83) -> 56 | O83: Sel_ListTNBT | P83: <button id="Sel_ListTNBT" onAction="onActionBUT" getVisible="getVisible" getLabel="getLabel" getScreentip="getScreentip" getSupertip="getSupertip" imageMso="_6" getEnabled="getEnabled"/>
A84: Sel_ListTNkhac | B84: ListTNkhac | C84: List Thí nghiệm khác | D84: List Thí nghiệm khác | G84: 1 | H84: 1 | I84: 1 | J84: 0 | K84: _7 | L84: <button id="XXXX" onAction="onActionBUT" getVisible="getVisible" getLabel="getLabel" getScreentip="getScreentip" getSupertip="getSupertip" imageMso="HappyFace" getEnabled="getEnabled"/> | M84: BUTT | N84: =+COUNTIF($M$3:M84,M84) -> 57 | O84: Sel_ListTNkhac | P84: <button id="Sel_ListTNkhac" onAction="onActionBUT" getVisible="getVisible" getLabel="getLabel" getScreentip="getScreentip" getSupertip="getSupertip" imageMso="_7" getEnabled="getEnabled"/>
A85: Sel_LIST_BBKT_HM | B85: LIST_BBKT_HM | C85: List Kiểm tra hố móng (đào đất) | D85: List Kiểm tra hố móng (đào đất) | G85: 1 | H85: 1 | I85: 1 | J85: 0 | K85: _8 | L85: <button id="XXXX" onAction="onActionBUT" getVisible="getVisible" getLabel="getLabel" getScreentip="getScreentip" getSupertip="getSupertip" imageMso="HappyFace" getEnabled="getEnabled"/> | M85: BUTT | N85: =+COUNTIF($M$3:M85,M85) -> 58 | O85: Sel_LIST_BBKT_HM | P85: <button id="Sel_LIST_BBKT_HM" onAction="onActionBUT" getVisible="getVisible" getLabel="getLabel" getScreentip="getScreentip" getSupertip="getSupertip" imageMso="_8" getEnabled="getEnabled"/>
A86: Sel_LIST_BBKT_DAP | B86: LIST_BBKT_DAP | C86: List Kiểm tra đắp đát | D86: List Kiểm tra đắp đát | G86: 1 | H86: 1 | I86: 1 | J86: 0 | K86: _9 | L86: <button id="XXXX" onAction="onActionBUT" getVisible="getVisible" getLabel="getLabel" getScreentip="getScreentip" getSupertip="getSupertip" imageMso="HappyFace" getEnabled="getEnabled"/> | M86: BUTT | N86: =+COUNTIF($M$3:M86,M86) -> 59 | O86: Sel_LIST_BBKT_DAP | P86: <button id="Sel_LIST_BBKT_DAP" onAction="onActionBUT" getVisible="getVisible" getLabel="getLabel" getScreentip="getScreentip" getSupertip="getSupertip" imageMso="_9" getEnabled="getEnabled"/>
A87: Sel_LIST_BBKT_BT | B87: LIST_BBKT_BT | C87: List Kiểm tra kích thước hình học bê tông | D87: List Kiểm tra kích thước hình học bê tông | G87: 1 | H87: 1 | I87: 1 | J87: 0 | K87: _0 | L87: <button id="XXXX" onAction="onActionBUT" getVisible="getVisible" getLabel="getLabel" getScreentip="getScreentip" getSupertip="getSupertip" imageMso="HappyFace" getEnabled="getEnabled"/> | M87: BUTT | N87: =+COUNTIF($M$3:M87,M87) -> 60 | O87: Sel_LIST_BBKT_BT | P87: <button id="Sel_LIST_BBKT_BT" onAction="onActionBUT" getVisible="getVisible" getLabel="getLabel" getScreentip="getScreentip" getSupertip="getSupertip" imageMso="_0" getEnabled="getEnabled"/>
A88: Sel_LIST_BBKT_VK | B88: LIST_BBKT_VK | C88: List Kiểm tra kích thước ván khuôn | D88: List Kiểm tra kích thước ván khuôn | G88: 1 | H88: 1 | I88: 1 | J88: 0 | K88: _1 | L88: <button id="XXXX" onAction="onActionBUT" getVisible="getVisible" getLabel="getLabel" getScreentip="getScreentip" getSupertip="getSupertip" imageMso="HappyFace" getEnabled="getEnabled"/> | M88: BUTT | N88: =+COUNTIF($M$3:M88,M88) -> 61 | O88: Sel_LIST_BBKT_VK | P88: <button id="Sel_LIST_BBKT_VK" onAction="onActionBUT" getVisible="getVisible" getLabel="getLabel" getScreentip="getScreentip" getSupertip="getSupertip" imageMso="_1" getEnabled="getEnabled"/>
A89: Sel_LIST_BBKT_CT | B89: LIST_BBKT_CT | C89: List Kiểm tra cốt thép | D89: List Kiểm tra cốt thép | G89: 1 | H89: 1 | I89: 1 | J89: 0 | K89: _2 | L89: <button id="XXXX" onAction="onActionBUT" getVisible="getVisible" getLabel="getLabel" getScreentip="getScreentip" getSupertip="getSupertip" imageMso="HappyFace" getEnabled="getEnabled"/> | M89: BUTT | N89: =+COUNTIF($M$3:M89,M89) -> 62 | O89: Sel_LIST_BBKT_CT | P89: <button id="Sel_LIST_BBKT_CT" onAction="onActionBUT" getVisible="getVisible" getLabel="getLabel" getScreentip="getScreentip" getSupertip="getSupertip" imageMso="_2" getEnabled="getEnabled"/>
A90: Sel_LIST_DKDBT | B90: LIST_DKDBT | C90: List Điều kiện đổ bê tông | D90: List Điều kiện đổ bê tông | G90: 1 | H90: 1 | I90: 1 | J90: 0 | K90: _3 | L90: <button id="XXXX" onAction="onActionBUT" getVisible="getVisible" getLabel="getLabel" getScreentip="getScreentip" getSupertip="getSupertip" imageMso="HappyFace" getEnabled="getEnabled"/> | M90: BUTT | N90: =+COUNTIF($M$3:M90,M90) -> 63 | O90: Sel_LIST_DKDBT | P90: <button id="Sel_LIST_DKDBT" onAction="onActionBUT" getVisible="getVisible" getLabel="getLabel" getScreentip="getScreentip" getSupertip="getSupertip" imageMso="_3" getEnabled="getEnabled"/>
A91: Sel_LIST_PHIEU_BT | B91: LIST_PHIEU_BT | C91: List Phiếu công tác bê tông | D91: List Phiếu công tác bê tông | G91: 1 | H91: 1 | I91: 1 | J91: 0 | K91: _4 | L91: <button id="XXXX" onAction="onActionBUT" getVisible="getVisible" getLabel="getLabel" getScreentip="getScreentip" getSupertip="getSupertip" imageMso="HappyFace" getEnabled="getEnabled"/> | M91: BUTT | N91: =+COUNTIF($M$3:M91,M91) -> 64 | O91: Sel_LIST_PHIEU_BT | P91: <button id="Sel_LIST_PHIEU_BT" onAction="onActionBUT" getVisible="getVisible" getLabel="getLabel" getScreentip="getScreentip" getSupertip="getSupertip" imageMso="_4" getEnabled="getEnabled"/>
A92: Sel_LIST_THAO_VK | B92: LIST_THAO_VK | C92: List Tháo ván khuôn | D92: List Tháo ván khuôn | G92: 1 | H92: 1 | I92: 1 | J92: 0 | K92: _5 | L92: <button id="XXXX" onAction="onActionBUT" getVisible="getVisible" getLabel="getLabel" getScreentip="getScreentip" getSupertip="getSupertip" imageMso="HappyFace" getEnabled="getEnabled"/> | M92: BUTT | N92: =+COUNTIF($M$3:M92,M92) -> 65 | O92: Sel_LIST_THAO_VK | P92: <button id="Sel_LIST_THAO_VK" onAction="onActionBUT" getVisible="getVisible" getLabel="getLabel" getScreentip="getScreentip" getSupertip="getSupertip" imageMso="_5" getEnabled="getEnabled"/>
A93: Sel_LIST_BB_SDD | B93: LIST_BB_SDD | C93: List Sổ đo đạc | D93: List Sổ đo đạc | G93: 1 | H93: 1 | I93: 1 | J93: 0 | K93: _6 | L93: <button id="XXXX" onAction="onActionBUT" getVisible="getVisible" getLabel="getLabel" getScreentip="getScreentip" getSupertip="getSupertip" imageMso="HappyFace" getEnabled="getEnabled"/> | M93: BUTT | N93: =+COUNTIF($M$3:M93,M93) -> 66 | O93: Sel_LIST_BB_SDD | P93: <button id="Sel_LIST_BB_SDD" onAction="onActionBUT" getVisible="getVisible" getLabel="getLabel" getScreentip="getScreentip" getSupertip="getSupertip" imageMso="_6" getEnabled="getEnabled"/>
A94: BUTT067 | C94: =+MAX($C$1:C93)+1 -> 28 | G94: 0 | H94: 1 | I94: 1 | J94: 0 | K94: _7 | L94: <button id="XXXX" onAction="onActionBUT" getVisible="getVisible" getLabel="getLabel" getScreentip="getScreentip" getSupertip="getSupertip" imageMso="HappyFace" getEnabled="getEnabled"/> | M94: BUTT | N94: =+COUNTIF($M$3:M94,M94) -> 67 | O94: BUTT067 | P94: <button id="BUTT067" onAction="onActionBUT" getVisible="getVisible" getLabel="getLabel" getScreentip="getScreentip" getSupertip="getSupertip" imageMso="_7" getEnabled="getEnabled"/>
A95: BUTT068 | C95: =+MAX($C$1:C94)+1 -> 29 | G95: 0 | H95: 1 | I95: 1 | J95: 0 | K95: _8 | L95: <button id="XXXX" onAction="onActionBUT" getVisible="getVisible" getLabel="getLabel" getScreentip="getScreentip" getSupertip="getSupertip" imageMso="HappyFace" getEnabled="getEnabled"/> | M95: BUTT | N95: =+COUNTIF($M$3:M95,M95) -> 68 | O95: BUTT068 | P95: <button id="BUTT068" onAction="onActionBUT" getVisible="getVisible" getLabel="getLabel" getScreentip="getScreentip" getSupertip="getSupertip" imageMso="_8" getEnabled="getEnabled"/>
C96: =+MAX($C$1:C95)+1 -> 30 | G96: 0 | L96: </menu> | O96: 000 | P96: </menu>
C97: =+MAX($C$1:C96)+1 -> 31 | G97: 0 | L97: </splitButton> | O97: 000 | P97: </splitButton>
A98: =+O98 -> SPLI006 | C98: =+MAX($C$1:C97)+1 -> 32 | G98: =+IF(ISNUMBER(C99),0,1) -> 1 | H98: 1 | I98: 1 | J98: 1 | L98: <splitButton id="XXXX" size="large" getVisible="getVisible" getEnabled="getEnabled"> | M98: SPLI | N98: =+COUNTIF($M$3:M98,M98) -> 6 | O98: SPLI006 | P98: <splitButton id="SPLI006" size="large" getVisible="getVisible" getEnabled="getEnabled">
A99: But_BienBan | B99: But_BienBan | C99: Biên bản | E99: Nhấn vào để di chuyển đến các sheet tương ứng | G99: 1 | H99: 1 | I99: 1 | J99: 1 | K99: FormulaMoreFunctionsMenu | L99: <button id="XXXX" onAction="onActionBUT" getLabel="getLabel" getScreentip="getScreentip" getSupertip="getSupertip" imageMso="HappyFace" getEnabled="getEnabled"/> | M99: BUTT | N99: =+COUNTIF($M$3:M99,M99) -> 69 | O99: But_BienBan | P99: <button id="But_BienBan" onAction="onActionBUT" getLabel="getLabel" getScreentip="getScreentip" getSupertip="getSupertip" imageMso="FormulaMoreFunctionsMenu" getEnabled="getEnabled"/>
A100: MENU006 | C100: 124 | G100: =+IF(ISNUMBER(C101),0,1) -> 1 | H100: 1 | I100: 1 | J100: 1 | L100: <menu id="XXXX" itemSize="normal" getLabel="getLabel" getScreentip="getScreentip" getSupertip="getSupertip" imageMso="HappyFace" getEnabled="getEnabled"> | M100: MENU | N100: =+COUNTIF($M$3:M100,M100) -> 6 | O100: MENU006 | P100: <menu id="MENU006" itemSize="normal" getLabel="getLabel" getScreentip="getScreentip" getSupertip="getSupertip" imageMso="HappyFace" getEnabled="getEnabled">
A101: Sel_DanhmucBBCV | B101: DanhmucBBCV | C101: Danh mục hồ sơ nghiệm thu công việc | D101: Danh mục hồ sơ nghiệm thu công việc | G101: 1 | H101: 1 | I101: 1 | J101: 1 | K101: _1 | L101: <button id="XXXX" onAction="onActionBUT" getVisible="getVisible" getLabel="getLabel" getScreentip="getScreentip" getSupertip="getSupertip" imageMso="HappyFace" getEnabled="getEnabled"/> | M101: BUTT | N101: =+COUNTIF($M$3:M101,M101) -> 70 | O101: Sel_DanhmucBBCV | P101: <button id="Sel_DanhmucBBCV" onAction="onActionBUT" getVisible="getVisible" getLabel="getLabel" getScreentip="getScreentip" getSupertip="getSupertip" imageMso="_1" getEnabled="getEnabled"/>
A102: Sel_BienbanCVXD | B102: BienbanCVXD | C102: Biên bản nghiệm thu công việc | D102: Biên bản nghiệm thu công việc | G102: 1 | H102: 1 | I102: 1 | J102: 1 | K102: _2 | L102: <button id="XXXX" onAction="onActionBUT" getVisible="getVisible" getLabel="getLabel" getScreentip="getScreentip" getSupertip="getSupertip" imageMso="HappyFace" getEnabled="getEnabled"/> | M102: BUTT | N102: =+COUNTIF($M$3:M102,M102) -> 71 | O102: Sel_BienbanCVXD | P102: <button id="Sel_BienbanCVXD" onAction="onActionBUT" getVisible="getVisible" getLabel="getLabel" getScreentip="getScreentip" getSupertip="getSupertip" imageMso="_2" getEnabled="getEnabled"/>
A103: Sel_BienbanHT | B103: BienbanHT | C103: Biên bản NTHT công việc | D103: Biên bản NTHT công việc | G103: 1 | H103: 1 | I103: 1 | J103: 0 | K103: _3 | L103: <button id="XXXX" onAction="onActionBUT" getVisible="getVisible" getLabel="getLabel" getScreentip="getScreentip" getSupertip="getSupertip" imageMso="HappyFace" getEnabled="getEnabled"/> | M103: BUTT | N103: =+COUNTIF($M$3:M103,M103) -> 72 | O103: Sel_BienbanHT | P103: <button id="Sel_BienbanHT" onAction="onActionBUT" getVisible="getVisible" getLabel="getLabel" getScreentip="getScreentip" getSupertip="getSupertip" imageMso="_3" getEnabled="getEnabled"/>
A104: Sel_BienbanVatlieu | B104: BienbanVatlieu | C104: Biên bản nghiệm thu vật liệu | D104: Biên bản nghiệm thu vật liệu | G104: 1 | H104: 1 | I104: 1 | J104: 0 | K104: _4 | L104: <button id="XXXX" onAction="onActionBUT" getVisible="getVisible" getLabel="getLabel" getScreentip="getScreentip" getSupertip="getSupertip" imageMso="HappyFace" getEnabled="getEnabled"/> | M104: BUTT | N104: =+COUNTIF($M$3:M104,M104) -> 73 | O104: Sel_BienbanVatlieu | P104: <button id="Sel_BienbanVatlieu" onAction="onActionBUT" getVisible="getVisible" getLabel="getLabel" getScreentip="getScreentip" getSupertip="getSupertip" imageMso="_4" getEnabled="getEnabled"/>
A105: Sel_BBKT_Homong | B105: BBKT_Homong | C105: Biên bản nghiệm thu đào đất | D105: Biên bản nghiệm thu đào đất | G105: 1 | H105: 1 | I105: 1 | J105: 0 | K105: _5 | L105: <button id="XXXX" onAction="onActionBUT" getVisible="getVisible" getLabel="getLabel" getScreentip="getScreentip" getSupertip="getSupertip" imageMso="HappyFace" getEnabled="getEnabled"/> | M105: BUTT | N105: =+COUNTIF($M$3:M105,M105) -> 74 | O105: Sel_BBKT_Homong | P105: <button id="Sel_BBKT_Homong" onAction="onActionBUT" getVisible="getVisible" getLabel="getLabel" getScreentip="getScreentip" getSupertip="getSupertip" imageMso="_5" getEnabled="getEnabled"/>
A106: Sel_BBKT_Dap | B106: BBKT_Dap | C106: Biên bản nghiệm thu đắp đất | D106: Biên bản nghiệm thu đắp đất | G106: 1 | H106: 1 | I106: 1 | J106: 0 | K106: _6 | L106: <button id="XXXX" onAction="onActionBUT" getVisible="getVisible" getLabel="getLabel" getScreentip="getScreentip" getSupertip="getSupertip" imageMso="HappyFace" getEnabled="getEnabled"/> | M106: BUTT | N106: =+COUNTIF($M$3:M106,M106) -> 75 | O106: =IF(B106<>"",IF(LEFT(B106,3)<>"But","Sel_"&B106,B106),M106&TEXT(N106,"000")) -> Sel_BBKT_Dap | P106: =+SUBSTITUTE(SUBSTITUTE(L106,"XXXX",O106),"HappyFace",IF(K106<>"",K106,"HappyFace")) -> <button id="Sel_BBKT_Dap" onAction="onActionBUT" getVisible="getVisible" getLabel="getLabel" getScreentip="getScreentip" getSupertip="getSupertip" imageMso="_6" getEnabled="getEnabled"/>
A107: Sel_BBKT_VK | B107: BBKT_VK | C107: Biên bản nghiệm thu ván khuôn | D107: Biên bản nghiệm thu ván khuôn | G107: 1 | H107: 1 | I107: 1 | J107: 0 | K107: _7 | L107: <button id="XXXX" onAction="onActionBUT" getVisible="getVisible" getLabel="getLabel" getScreentip="getScreentip" getSupertip="getSupertip" imageMso="HappyFace" getEnabled="getEnabled"/> | M107: BUTT | N107: =+COUNTIF($M$3:M107,M107) -> 76 | O107: Sel_BBKT_VK | P107: <button id="Sel_BBKT_VK" onAction="onActionBUT" getVisible="getVisible" getLabel="getLabel" getScreentip="getScreentip" getSupertip="getSupertip" imageMso="_7" getEnabled="getEnabled"/>
A108: Sel_BBKT_CT | B108: BBKT_CT | C108: Biên bản nghiệm thu cốt thép | D108: Biên bản nghiệm thu cốt thép | G108: =+IF(ISNUMBER(C108),0,1) -> 1 | H108: 1 | I108: 1 | J108: 0 | K108: _8 | L108: <button id="XXXX" onAction="onActionBUT" getVisible="getVisible" getLabel="getLabel" getScreentip="getScreentip" getSupertip="getSupertip" imageMso="HappyFace" getEnabled="getEnabled"/> | M108: BUTT | N108: =+COUNTIF($M$3:M108,M108) -> 77 | O108: Sel_BBKT_CT | P108: <button id="Sel_BBKT_CT" onAction="onActionBUT" getVisible="getVisible" getLabel="getLabel" getScreentip="getScreentip" getSupertip="getSupertip" imageMso="_8" getEnabled="getEnabled"/>
A109: Sel_BBKT_DKDBT | B109: BBKT_DKDBT | C109: Biên bản kiểm tra điều kiện đổ bê tông | D109: Biên bản kiểm tra điều kiện đổ bê tông | G109: 1 | H109: 1 | I109: 1 | J109: 0 | K109: _9 | L109: <button id="XXXX" onAction="onActionBUT" getVisible="getVisible" getLabel="getLabel" getScreentip="getScreentip" getSupertip="getSupertip" imageMso="HappyFace" getEnabled="getEnabled"/> | M109: BUTT | N109: =+COUNTIF($M$3:M109,M109) -> 78 | O109: Sel_BBKT_DKDBT | P109: <button id="Sel_BBKT_DKDBT" onAction="onActionBUT" getVisible="getVisible" getLabel="getLabel" getScreentip="getScreentip" getSupertip="getSupertip" imageMso="_9" getEnabled="getEnabled"/>
A110: Sel_PHIEU_BT | B110: PHIEU_BT | C110: Phiếu công tác bê tông | D110: Phiếu công tác bê tông | G110: 1 | H110: 1 | I110: 1 | J110: 0 | K110: _0 | L110: <button id="XXXX" onAction="onActionBUT" getVisible="getVisible" getLabel="getLabel" getScreentip="getScreentip" getSupertip="getSupertip" imageMso="HappyFace" getEnabled="getEnabled"/> | M110: BUTT | N110: =+COUNTIF($M$3:M110,M110) -> 79 | O110: Sel_PHIEU_BT | P110: <button id="Sel_PHIEU_BT" onAction="onActionBUT" getVisible="getVisible" getLabel="getLabel" getScreentip="getScreentip" getSupertip="getSupertip" imageMso="_0" getEnabled="getEnabled"/>
A111: Sel_THAO_VK | B111: THAO_VK | C111: Biên bản kiểm tra bê tông sau khi tháo ván khuôn | D111: Biên bản kiểm tra bê tông sau khi tháo ván khuôn | G111: 1 | H111: 1 | I111: 1 | J111: 0 | K111: _1 | L111: <button id="XXXX" onAction="onActionBUT" getVisible="getVisible" getLabel="getLabel" getScreentip="getScreentip" getSupertip="getSupertip" imageMso="HappyFace" getEnabled="getEnabled"/> | M111: BUTT | N111: =+COUNTIF($M$3:M111,M111) -> 80 | O111: Sel_THAO_VK | P111: <button id="Sel_THAO_VK" onAction="onActionBUT" getVisible="getVisible" getLabel="getLabel" getScreentip="getScreentip" getSupertip="getSupertip" imageMso="_1" getEnabled="getEnabled"/>
A112: Sel_BBKT_KTHHBT | B112: BBKT_KTHHBT | C112: Biên bản kiểm tra cao độ, kích thước hình học bê tông | D112: Biên bản kiểm tra cao độ, kích thước hình học bê tông | G112: 1 | H112: 1 | I112: 1 | J112: 0 | K112: _2 | L112: <button id="XXXX" onAction="onActionBUT" getVisible="getVisible" getLabel="getLabel" getScreentip="getScreentip" getSupertip="getSupertip" imageMso="HappyFace" getEnabled="getEnabled"/> | M112: BUTT | N112: =+COUNTIF($M$3:M112,M112) -> 81 | O112: Sel_BBKT_KTHHBT | P112: <button id="Sel_BBKT_KTHHBT" onAction="onActionBUT" getVisible="getVisible" getLabel="getLabel" getScreentip="getScreentip" getSupertip="getSupertip" imageMso="_2" getEnabled="getEnabled"/>
A113: Sel_BBKT_SDD | B113: BBKT_SDD | C113: Biên bản sổ đo đạc | D113: Biên bản sổ đo đạc | G113: 1 | H113: 1 | I113: 1 | J113: 0 | K113: _3 | L113: <button id="XXXX" onAction="onActionBUT" getVisible="getVisible" getLabel="getLabel" getScreentip="getScreentip" getSupertip="getSupertip" imageMso="HappyFace" getEnabled="getEnabled"/> | M113: BUTT | N113: =+COUNTIF($M$3:M113,M113) -> 82 | O113: Sel_BBKT_SDD | P113: <button id="Sel_BBKT_SDD" onAction="onActionBUT" getVisible="getVisible" getLabel="getLabel" getScreentip="getScreentip" getSupertip="getSupertip" imageMso="_3" getEnabled="getEnabled"/>
A114: Sel_BBLMVL | B114: BBLMVL | C114: Biên bản lấy MTN vật liệu đầu vào | D114: Biên bản lấy MTN vật liệu đầu vào | G114: 1 | H114: 1 | I114: 1 | J114: 0 | K114: _4 | L114: <button id="XXXX" onAction="onActionBUT" getVisible="getVisible" getLabel="getLabel" getScreentip="getScreentip" getSupertip="getSupertip" imageMso="HappyFace" getEnabled="getEnabled"/> | M114: BUTT | N114: =+COUNTIF($M$3:M114,M114) -> 83 | O114: Sel_BBLMVL | P114: <button id="Sel_BBLMVL" onAction="onActionBUT" getVisible="getVisible" getLabel="getLabel" getScreentip="getScreentip" getSupertip="getSupertip" imageMso="_4" getEnabled="getEnabled"/>
A115: Sel_BBLMBT | B115: BBLMBT | C115: Biên bản lấy mẫu thí nghiệm bê tông và vữa | D115: Biên bản lấy mẫu thí nghiệm bê tông và vữa | G115: 1 | H115: 1 | I115: 1 | J115: 0 | K115: _5 | L115: <button id="XXXX" onAction="onActionBUT" getVisible="getVisible" getLabel="getLabel" getScreentip="getScreentip" getSupertip="getSupertip" imageMso="HappyFace" getEnabled="getEnabled"/> | M115: BUTT | N115: =+COUNTIF($M$3:M115,M115) -> 84 | O115: Sel_BBLMBT | P115: <button id="Sel_BBLMBT" onAction="onActionBUT" getVisible="getVisible" getLabel="getLabel" getScreentip="getScreentip" getSupertip="getSupertip" imageMso="_5" getEnabled="getEnabled"/>
A116: Sel_BBLMkhac | B116: BBLMkhac | C116: Biên bản lấy mẫu thí nghiệm (khác) | D116: Biên bản lấy mẫu thí nghiệm (khác) | G116: 1 | H116: 1 | I116: 1 | J116: 0 | K116: _6 | L116: <button id="XXXX" onAction="onActionBUT" getVisible="getVisible" getLabel="getLabel" getScreentip="getScreentip" getSupertip="getSupertip" imageMso="HappyFace" getEnabled="getEnabled"/> | M116: BUTT | N116: =+COUNTIF($M$3:M116,M116) -> 85 | O116: Sel_BBLMkhac | P116: <button id="Sel_BBLMkhac" onAction="onActionBUT" getVisible="getVisible" getLabel="getLabel" getScreentip="getScreentip" getSupertip="getSupertip" imageMso="_6" getEnabled="getEnabled"/>
A117: BUTT086 | C117: =+MAX($C$1:C116)+1 -> 125 | G117: 0 | H117: 1 | I117: 1 | J117: 0 | K117: _7 | L117: <button id="XXXX" onAction="onActionBUT" getVisible="getVisible" getLabel="getLabel" getScreentip="getScreentip" getSupertip="getSupertip" imageMso="HappyFace" getEnabled="getEnabled"/> | M117: BUTT | N117: =+COUNTIF($M$3:M117,M117) -> 86 | O117: BUTT086 | P117: <button id="BUTT086" onAction="onActionBUT" getVisible="getVisible" getLabel="getLabel" getScreentip="getScreentip" getSupertip="getSupertip" imageMso="_7" getEnabled="getEnabled"/>
A118: BUTT087 | C118: =+MAX($C$1:C117)+1 -> 126 | G118: 0 | H118: 1 | I118: 1 | J118: 0 | K118: _8 | L118: <button id="XXXX" onAction="onActionBUT" getVisible="getVisible" getLabel="getLabel" getScreentip="getScreentip" getSupertip="getSupertip" imageMso="HappyFace" getEnabled="getEnabled"/> | M118: BUTT | N118: =+COUNTIF($M$3:M118,M118) -> 87 | O118: BUTT087 | P118: <button id="BUTT087" onAction="onActionBUT" getVisible="getVisible" getLabel="getLabel" getScreentip="getScreentip" getSupertip="getSupertip" imageMso="_8" getEnabled="getEnabled"/>
C119: =+MAX($C$1:C118)+1 -> 127 | G119: 0 | L119: </menu> | O119: 000 | P119: </menu>
C120: =+MAX($C$1:C119)+1 -> 128 | G120: 0 | L120: </splitButton> | O120: 000 | P120: </splitButton>
A121: =+O121 -> SPLI007 | C121: 135 | G121: =+IF(ISNUMBER(C122),0,1) -> 1 | H121: 1 | I121: 1 | J121: 1 | L121: <splitButton id="XXXX" size="large" getVisible="getVisible" getEnabled="getEnabled"> | M121: SPLI | N121: =+COUNTIF($M$3:M121,M121) -> 7 | O121: SPLI007 | P121: <splitButton id="SPLI007" size="large" getVisible="getVisible" getEnabled="getEnabled">
A122: But_BienBanKhac | B122: But_BienBanKhac | C122: Biên bản khác | D122: Biên bản khác | E122: Nhấn vào để di chuyển đến các sheet tương ứng | G122: 1 | H122: 1 | I122: 1 | J122: 1 | K122: FunctionsLogicalInsertGallery | L122: <button id="XXXX" onAction="onActionBUT" getLabel="getLabel" getScreentip="getScreentip" getSupertip="getSupertip" imageMso="HappyFace" getEnabled="getEnabled"/> | M122: BUTT | N122: =+COUNTIF($M$3:M122,M122) -> 88 | O122: But_BienBanKhac | P122: <button id="But_BienBanKhac" onAction="onActionBUT" getLabel="getLabel" getScreentip="getScreentip" getSupertip="getSupertip" imageMso="FunctionsLogicalInsertGallery" getEnabled="getEnabled"/>
A123: MENU007 | C123: 136 | G123: =+IF(ISNUMBER(C124),0,1) -> 1 | H123: 1 | I123: 1 | J123: 1 | L123: <menu id="XXXX" itemSize="normal" getLabel="getLabel" getScreentip="getScreentip" getSupertip="getSupertip" imageMso="HappyFace" getEnabled="getEnabled"> | M123: MENU | N123: =+COUNTIF($M$3:M123,M123) -> 7 | O123: MENU007 | P123: <menu id="MENU007" itemSize="normal" getLabel="getLabel" getScreentip="getScreentip" getSupertip="getSupertip" imageMso="HappyFace" getEnabled="getEnabled">
A124: Sel_Bia_Hoso | B124: Bia_Hoso | C124: Bìa hồ sơ hoàn công | D124: Bìa hồ sơ hoàn công | G124: 1 | H124: 1 | I124: 1 | J124: 1 | K124: _1 | L124: <button id="XXXX" onAction="onActionBUT" getVisible="getVisible" getLabel="getLabel" getScreentip="getScreentip" getSupertip="getSupertip" imageMso="HappyFace" getEnabled="getEnabled"/> | M124: BUTT | N124: =+COUNTIF($M$3:M124,M124) -> 89 | O124: Sel_Bia_Hoso | P124: <button id="Sel_Bia_Hoso" onAction="onActionBUT" getVisible="getVisible" getLabel="getLabel" getScreentip="getScreentip" getSupertip="getSupertip" imageMso="_1" getEnabled="getEnabled"/>
A125: Sel_Bia_nhatky | B125: Bia_nhatky | C125: Bìa nhật ký thi công | D125: Bìa nhật ký thi công | G125: 1 | H125: 1 | I125: 1 | J125: 1 | K125: _2 | L125: <button id="XXXX" onAction="onActionBUT" getVisible="getVisible" getLabel="getLabel" getScreentip="getScreentip" getSupertip="getSupertip" imageMso="HappyFace" getEnabled="getEnabled"/> | M125: BUTT | N125: =+COUNTIF($M$3:M125,M125) -> 90 | O125: Sel_Bia_nhatky | P125: <button id="Sel_Bia_nhatky" onAction="onActionBUT" getVisible="getVisible" getLabel="getLabel" getScreentip="getScreentip" getSupertip="getSupertip" imageMso="_2" getEnabled="getEnabled"/>
A126: Sel_LenhKcong | B126: LenhKcong | C126: Lệnh khởi công | D126: Lệnh khởi công | G126: 1 | H126: 1 | I126: 1 | J126: 0 | K126: _3 | L126: <button id="XXXX" onAction="onActionBUT" getVisible="getVisible" getLabel="getLabel" getScreentip="getScreentip" getSupertip="getSupertip" imageMso="HappyFace" getEnabled="getEnabled"/> | M126: BUTT | N126: =+COUNTIF($M$3:M126,M126) -> 91 | O126: Sel_LenhKcong | P126: <button id="Sel_LenhKcong" onAction="onActionBUT" getVisible="getVisible" getLabel="getLabel" getScreentip="getScreentip" getSupertip="getSupertip" imageMso="_3" getEnabled="getEnabled"/>
A127: Sel_Matbang | B127: Matbang | C127: Biên bản bàn giao mặt bằng | D127: Biên bản bàn giao mặt bằng | G127: 1 | H127: 1 | I127: 1 | J127: 0 | K127: _4 | L127: <button id="XXXX" onAction="onActionBUT" getVisible="getVisible" getLabel="getLabel" getScreentip="getScreentip" getSupertip="getSupertip" imageMso="HappyFace" getEnabled="getEnabled"/> | M127: BUTT | N127: =+COUNTIF($M$3:M127,M127) -> 92 | O127: Sel_Matbang | P127: <button id="Sel_Matbang" onAction="onActionBUT" getVisible="getVisible" getLabel="getLabel" getScreentip="getScreentip" getSupertip="getSupertip" imageMso="_4" getEnabled="getEnabled"/>
A128: Sel_PhieuCTVL | B128: PhieuCTVL | C128: Biên bản vật liệu nguồn | D128: Biên bản vật liệu nguồn | G128: 1 | H128: 1 | I128: 1 | J128: 0 | K128: _5 | L128: <button id="XXXX" onAction="onActionBUT" getVisible="getVisible" getLabel="getLabel" getScreentip="getScreentip" getSupertip="getSupertip" imageMso="HappyFace" getEnabled="getEnabled"/> | M128: BUTT | N128: =+COUNTIF($M$3:M128,M128) -> 93 | O128: Sel_PhieuCTVL | P128: <button id="Sel_PhieuCTVL" onAction="onActionBUT" getVisible="getVisible" getLabel="getLabel" getScreentip="getScreentip" getSupertip="getSupertip" imageMso="_5" getEnabled="getEnabled"/>
A129: Sel_PhongThinghiem | B129: PhongThinghiem | C129: Biên bản kiểm tra phòng thí nghiệm | D129: Biên bản kiểm tra phòng thí nghiệm | G129: 1 | H129: 1 | I129: 1 | J129: 0 | K129: _6 | L129: <button id="XXXX" onAction="onActionBUT" getVisible="getVisible" getLabel="getLabel" getScreentip="getScreentip" getSupertip="getSupertip" imageMso="HappyFace" getEnabled="getEnabled"/> | M129: BUTT | N129: =+COUNTIF($M$3:M129,M129) -> 94 | O129: Sel_PhongThinghiem | P129: <button id="Sel_PhongThinghiem" onAction="onActionBUT" getVisible="getVisible" getLabel="getLabel" getScreentip="getScreentip" getSupertip="getSupertip" imageMso="_6" getEnabled="getEnabled"/>
A130: Sel_Nhanluc | B130: Nhanluc | C130: Biên bản kiểm tra thiết bị, nhân lực | D130: Biên bản kiểm tra thiết bị, nhân lực | G130: 1 | H130: 1 | I130: 1 | J130: 0 | K130: _7 | L130: <button id="XXXX" onAction="onActionBUT" getVisible="getVisible" getLabel="getLabel" getScreentip="getScreentip" getSupertip="getSupertip" imageMso="HappyFace" getEnabled="getEnabled"/> | M130: BUTT | N130: =+COUNTIF($M$3:M130,M130) -> 95 | O130: Sel_Nhanluc | P130: <button id="Sel_Nhanluc" onAction="onActionBUT" getVisible="getVisible" getLabel="getLabel" getScreentip="getScreentip" getSupertip="getSupertip" imageMso="_7" getEnabled="getEnabled"/>
A131: Sel_NthuMoc | B131: NthuMoc | C131: Biên bản kiểm tra tim mốc | D131: Biên bản kiểm tra tim mốc | G131: 1 | H131: 1 | I131: 1 | J131: 0 | K131: _8 | L131: <button id="XXXX" onAction="onActionBUT" getVisible="getVisible" getLabel="getLabel" getScreentip="getScreentip" getSupertip="getSupertip" imageMso="HappyFace" getEnabled="getEnabled"/> | M131: BUTT | N131: =+COUNTIF($M$3:M131,M131) -> 96 | O131: Sel_NthuMoc | P131: <button id="Sel_NthuMoc" onAction="onActionBUT" getVisible="getVisible" getLabel="getLabel" getScreentip="getScreentip" getSupertip="getSupertip" imageMso="_8" getEnabled="getEnabled"/>
A132: Sel_Dieukientruocthicong | B132: Dieukientruocthicong | C132: Biên bản kiểm tra điều kiện khởi công | D132: Biên bản kiểm tra điều kiện khởi công | G132: 1 | H132: 1 | I132: 1 | J132: 0 | K132: _9 | L132: <button id="XXXX" onAction="onActionBUT" getVisible="getVisible" getLabel="getLabel" getScreentip="getScreentip" getSupertip="getSupertip" imageMso="HappyFace" getEnabled="getEnabled"/> | M132: BUTT | N132: =+COUNTIF($M$3:M132,M132) -> 97 | O132: Sel_Dieukientruocthicong | P132: <button id="Sel_Dieukientruocthicong" onAction="onActionBUT" getVisible="getVisible" getLabel="getLabel" getScreentip="getScreentip" getSupertip="getSupertip" imageMso="_9" getEnabled="getEnabled"/>
A133: Sel_BBXLKT | B133: BBXLKT | C133: Biên bản xử lý kỹ thuật | D133: Biên bản xử lý kỹ thuật | G133: 1 | H133: 1 | I133: 1 | J133: 0 | K133: _0 | L133: <button id="XXXX" onAction="onActionBUT" getVisible="getVisible" getLabel="getLabel" getScreentip="getScreentip" getSupertip="getSupertip" imageMso="HappyFace" getEnabled="getEnabled"/> | M133: BUTT | N133: =+COUNTIF($M$3:M133,M133) -> 98 | O133: Sel_BBXLKT | P133: <button id="Sel_BBXLKT" onAction="onActionBUT" getVisible="getVisible" getLabel="getLabel" getScreentip="getScreentip" getSupertip="getSupertip" imageMso="_0" getEnabled="getEnabled"/>
A134: Sel_Baocaosuco | B134: Baocaosuco | C134: Biên bản báo cáo sự cố | D134: Biên bản báo cáo sự cố | G134: 1 | H134: 1 | I134: 1 | J134: 0 | K134: _1 | L134: <button id="XXXX" onAction="onActionBUT" getVisible="getVisible" getLabel="getLabel" getScreentip="getScreentip" getSupertip="getSupertip" imageMso="HappyFace" getEnabled="getEnabled"/> | M134: BUTT | N134: =+COUNTIF($M$3:M134,M134) -> 99 | O134: Sel_Baocaosuco | P134: <button id="Sel_Baocaosuco" onAction="onActionBUT" getVisible="getVisible" getLabel="getLabel" getScreentip="getScreentip" getSupertip="getSupertip" imageMso="_1" getEnabled="getEnabled"/>
A135: Sel_Baocaohoanthanh | B135: Baocaohoanthanh | C135: Biên bản hoàn thành công trình | D135: Biên bản hoàn thành công trình | G135: 1 | H135: 1 | I135: 1 | J135: 0 | K135: _2 | L135: <button id="XXXX" onAction="onActionBUT" getVisible="getVisible" getLabel="getLabel" getScreentip="getScreentip" getSupertip="getSupertip" imageMso="HappyFace" getEnabled="getEnabled"/> | M135: BUTT | N135: =+COUNTIF($M$3:M135,M135) -> 100 | O135: Sel_Baocaohoanthanh | P135: <button id="Sel_Baocaohoanthanh" onAction="onActionBUT" getVisible="getVisible" getLabel="getLabel" getScreentip="getScreentip" getSupertip="getSupertip" imageMso="_2" getEnabled="getEnabled"/>
A136: Sel_BB_BanGiao | B136: BB_BanGiao | C136: Biên bản bàn giao công trình | D136: Biên bản bàn giao công trình | G136: 1 | H136: 1 | I136: 1 | J136: 0 | K136: _3 | L136: <button id="XXXX" onAction="onActionBUT" getVisible="getVisible" getLabel="getLabel" getScreentip="getScreentip" getSupertip="getSupertip" imageMso="HappyFace" getEnabled="getEnabled"/> | M136: BUTT | N136: =+COUNTIF($M$3:M136,M136) -> 101 | O136: Sel_BB_BanGiao | P136: <button id="Sel_BB_BanGiao" onAction="onActionBUT" getVisible="getVisible" getLabel="getLabel" getScreentip="getScreentip" getSupertip="getSupertip" imageMso="_3" getEnabled="getEnabled"/>
A137: BUTT102 | C137: =+MAX($C$1:C136)+1 -> 137 | G137: 0 | H137: 1 | I137: 1 | J137: 0 | K137: _4 | L137: <button id="XXXX" onAction="onActionBUT" getVisible="getVisible" getLabel="getLabel" getScreentip="getScreentip" getSupertip="getSupertip" imageMso="HappyFace" getEnabled="getEnabled"/> | M137: BUTT | N137: =+COUNTIF($M$3:M137,M137) -> 102 | O137: BUTT102 | P137: <button id="BUTT102" onAction="onActionBUT" getVisible="getVisible" getLabel="getLabel" getScreentip="getScreentip" getSupertip="getSupertip" imageMso="_4" getEnabled="getEnabled"/>
A138: BUTT103 | C138: =+MAX($C$1:C137)+1 -> 138 | G138: 0 | H138: 1 | I138: 1 | J138: 0 | K138: _5 | L138: <button id="XXXX" onAction="onActionBUT" getVisible="getVisible" getLabel="getLabel" getScreentip="getScreentip" getSupertip="getSupertip" imageMso="HappyFace" getEnabled="getEnabled"/> | M138: BUTT | N138: =+COUNTIF($M$3:M138,M138) -> 103 | O138: BUTT103 | P138: <button id="BUTT103" onAction="onActionBUT" getVisible="getVisible" getLabel="getLabel" getScreentip="getScreentip" getSupertip="getSupertip" imageMso="_5" getEnabled="getEnabled"/>
A139: BUTT104 | C139: =+MAX($C$1:C138)+1 -> 139 | G139: 0 | H139: 1 | I139: 1 | J139: 0 | K139: _6 | L139: <button id="XXXX" onAction="onActionBUT" getVisible="getVisible" getLabel="getLabel" getScreentip="getScreentip" getSupertip="getSupertip" imageMso="HappyFace" getEnabled="getEnabled"/> | M139: BUTT | N139: =+COUNTIF($M$3:M139,M139) -> 104 | O139: BUTT104 | P139: <button id="BUTT104" onAction="onActionBUT" getVisible="getVisible" getLabel="getLabel" getScreentip="getScreentip" getSupertip="getSupertip" imageMso="_6" getEnabled="getEnabled"/>
A140: BUTT105 | C140: =+MAX($C$1:C139)+1 -> 140 | G140: 0 | H140: 1 | I140: 1 | J140: 0 | K140: _7 | L140: <button id="XXXX" onAction="onActionBUT" getVisible="getVisible" getLabel="getLabel" getScreentip="getScreentip" getSupertip="getSupertip" imageMso="HappyFace" getEnabled="getEnabled"/> | M140: BUTT | N140: =+COUNTIF($M$3:M140,M140) -> 105 | O140: BUTT105 | P140: <button id="BUTT105" onAction="onActionBUT" getVisible="getVisible" getLabel="getLabel" getScreentip="getScreentip" getSupertip="getSupertip" imageMso="_7" getEnabled="getEnabled"/>
A141: BUTT106 | C141: =+MAX($C$1:C140)+1 -> 141 | G141: 0 | H141: 1 | I141: 1 | J141: 0 | K141: _8 | L141: <button id="XXXX" onAction="onActionBUT" getVisible="getVisible" getLabel="getLabel" getScreentip="getScreentip" getSupertip="getSupertip" imageMso="HappyFace" getEnabled="getEnabled"/> | M141: BUTT | N141: =+COUNTIF($M$3:M141,M141) -> 106 | O141: BUTT106 | P141: <button id="BUTT106" onAction="onActionBUT" getVisible="getVisible" getLabel="getLabel" getScreentip="getScreentip" getSupertip="getSupertip" imageMso="_8" getEnabled="getEnabled"/>
C142: =+MAX($C$1:C141)+1 -> 142 | G142: 0 | L142: </menu> | O142: 000 | P142: </menu>
C143: =+MAX($C$1:C142)+1 -> 143 | G143: 0 | L143: </splitButton> | O143: 000 | P143: </splitButton>
A144: =+O144 -> SPLI008 | C144: 169 | G144: =+IF(ISNUMBER(C145),0,1) -> 1 | H144: 1 | I144: 1 | J144: 1 | L144: <splitButton id="XXXX" size="large" getVisible="getVisible" getEnabled="getEnabled"> | M144: SPLI | N144: =+COUNTIF($M$3:M144,M144) -> 8 | O144: =IF(B144<>"",IF(LEFT(B144,3)<>"But","Sel_"&B144,B144),M144&TEXT(N144,"000")) -> SPLI008 | P144: =+SUBSTITUTE(SUBSTITUTE(L144,"XXXX",O144),"HappyFace",IF(K144<>"",K144,"HappyFace")) -> <splitButton id="SPLI008" size="large" getVisible="getVisible" getEnabled="getEnabled">
A145: But_NhatKy | B145: But_NhatKy | C145: Nhật ký | D145: Nhật ký | E145: Nhấn vào để di chuyển đến các sheet tương ứng | G145: =+IF(ISNUMBER(C145),0,1) -> 1 | H145: 1 | I145: 1 | J145: 1 | K145: Thesaurus | L145: <button id="XXXX" onAction="onActionBUT" getLabel="getLabel" getScreentip="getScreentip" getSupertip="getSupertip" imageMso="HappyFace" getEnabled="getEnabled"/> | M145: BUTT | N145: =+COUNTIF($M$3:M145,M145) -> 107 | O145: But_NhatKy | P145: <button id="But_NhatKy" onAction="onActionBUT" getLabel="getLabel" getScreentip="getScreentip" getSupertip="getSupertip" imageMso="Thesaurus" getEnabled="getEnabled"/>
A146: MENU008 | C146: 170 | G146: =+IF(ISNUMBER(C147),0,1) -> 1 | H146: 1 | I146: 1 | J146: 1 | L146: <menu id="XXXX" itemSize="normal" getLabel="getLabel" getScreentip="getScreentip" getSupertip="getSupertip" imageMso="HappyFace" getEnabled="getEnabled"> | M146: MENU | N146: =+COUNTIF($M$3:M146,M146) -> 8 | O146: MENU008 | P146: <menu id="MENU008" itemSize="normal" getLabel="getLabel" getScreentip="getScreentip" getSupertip="getSupertip" imageMso="HappyFace" getEnabled="getEnabled">
A147: Sel_DMnhatky | B147: DMnhatky | C147: Danh mục nhật ký | D147: Danh mục nhật ký | G147: =+IF(ISNUMBER(C147),0,1) -> 1 | H147: 1 | I147: 1 | J147: 1 | K147: FunctionsTextInsertGallery | L147: <button id="XXXX" onAction="onActionBUT" getVisible="getVisible" getLabel="getLabel" getScreentip="getScreentip" getSupertip="getSupertip" imageMso="HappyFace" getEnabled="getEnabled"/> | M147: BUTT | N147: =+COUNTIF($M$3:M147,M147) -> 108 | O147: Sel_DMnhatky | P147: <button id="Sel_DMnhatky" onAction="onActionBUT" getVisible="getVisible" getLabel="getLabel" getScreentip="getScreentip" getSupertip="getSupertip" imageMso="FunctionsTextInsertGallery" getEnabled="getEnabled"/>
A148: Sel_NKchitiet | B148: NKchitiet | C148: Phân tích chi tiết | D148: Phân tích chi tiết | G148: 1 | H148: 1 | I148: 1 | J148: 1 | K148: ImportMoreMenu | L148: <button id="XXXX" onAction="onActionBUT" getVisible="getVisible" getLabel="getLabel" getScreentip="getScreentip" getSupertip="getSupertip" imageMso="HappyFace" getEnabled="getEnabled"/> | M148: BUTT | N148: =+COUNTIF($M$3:M148,M148) -> 109 | O148: Sel_NKchitiet | P148: <button id="Sel_NKchitiet" onAction="onActionBUT" getVisible="getVisible" getLabel="getLabel" getScreentip="getScreentip" getSupertip="getSupertip" imageMso="ImportMoreMenu" getEnabled="getEnabled"/>
A149: Sel_GhiNhatky | B149: GhiNhatky | C149: Nhật ký thi công (Chép tay) | D149: Nhật ký thi công (Chép tay) | E149: Nhật ký thi công ghi thủ công | G149: =+IF(ISNUMBER(C149),0,1) -> 1 | H149: 1 | I149: 1 | J149: 1 | K149: ReviewTrackChanges | L149: <button id="XXXX" onAction="onActionBUT" getVisible="getVisible" getLabel="getLabel" getScreentip="getScreentip" getSupertip="getSupertip" imageMso="HappyFace" getEnabled="getEnabled"/> | M149: BUTT | N149: =+COUNTIF($M$3:M149,M149) -> 110 | O149: Sel_GhiNhatky | P149: <button id="Sel_GhiNhatky" onAction="onActionBUT" getVisible="getVisible" getLabel="getLabel" getScreentip="getScreentip" getSupertip="getSupertip" imageMso="ReviewTrackChanges" getEnabled="getEnabled"/>
A150: Sel_InNKTC | B150: InNKTC | C150: Nhật ký thi công (Bản in) | D150: Nhật ký thi công (Bản in) | E150: Nhật ký thi công in máy | G150: 1 | H150: 1 | I150: 1 | J150: 1 | K150: FilePrint | L150: <button id="XXXX" onAction="onActionBUT" getVisible="getVisible" getLabel="getLabel" getScreentip="getScreentip" getSupertip="getSupertip" imageMso="HappyFace" getEnabled="getEnabled"/> | M150: BUTT | N150: =+COUNTIF($M$3:M150,M150) -> 111 | O150: Sel_InNKTC | P150: <button id="Sel_InNKTC" onAction="onActionBUT" getVisible="getVisible" getLabel="getLabel" getScreentip="getScreentip" getSupertip="getSupertip" imageMso="FilePrint" getEnabled="getEnabled"/>
A151: Sel_InNKGS | B151: InNKGS | C151: Nhật ký giám sát (Bản in) | D151: Nhật ký giám sát (Bản in) | E151: Nhật ký giám sát | G151: 1 | H151: 1 | I151: 1 | J151: 0 | K151: FilePrint | L151: <button id="XXXX" onAction="onActionBUT" getVisible="getVisible" getLabel="getLabel" getScreentip="getScreentip" getSupertip="getSupertip" imageMso="HappyFace" getEnabled="getEnabled"/> | M151: BUTT | N151: =+COUNTIF($M$3:M151,M151) -> 112 | O151: Sel_InNKGS | P151: <button id="Sel_InNKGS" onAction="onActionBUT" getVisible="getVisible" getLabel="getLabel" getScreentip="getScreentip" getSupertip="getSupertip" imageMso="FilePrint" getEnabled="getEnabled"/>
A152: =+O152 -> Sel_DanhmucNhatKy | B152: DanhmucNhatKy | C152: Danh sách nhật ký | D152: =+C152 -> Danh sách nhật ký | E152: Danh sách nhật ký dạng cột để "Trộn thư" | G152: 1 | H152: 1 | I152: 1 | J152: 0 | K152: Thesaurus | L152: <button id="XXXX" onAction="onActionBUT" getVisible="getVisible" getLabel="getLabel" getScreentip="getScreentip" getSupertip="getSupertip" imageMso="HappyFace" getEnabled="getEnabled"/> | M152: BUTT | N152: =+COUNTIF($M$3:M152,M152) -> 113 | O152: Sel_DanhmucNhatKy | P152: <button id="Sel_DanhmucNhatKy" onAction="onActionBUT" getVisible="getVisible" getLabel="getLabel" getScreentip="getScreentip" getSupertip="getSupertip" imageMso="Thesaurus" getEnabled="getEnabled"/>
C153: =+MAX($C$1:C152)+1 -> 171 | G153: 0 | L153: </menu> | O153: 000 | P153: </menu>
C154: =+MAX($C$1:C153)+1 -> 172 | G154: 0 | L154: </splitButton> | O154: 000 | P154: </splitButton>
A155: =+O155 -> SPLI009 | G155: =+IF(ISNUMBER(C156),0,1) -> 1 | H155: 1 | I155: 1 | J155: 1 | L155: <splitButton id="XXXX" size="large" getVisible="getVisible" getEnabled="getEnabled"> | M155: SPLI | N155: =+COUNTIF($M$3:M155,M155) -> 9 | O155: =IF(B155<>"",IF(LEFT(B155,3)<>"But","Sel_"&B155,B155),M155&TEXT(N155,"000")) -> SPLI009 | P155: =+SUBSTITUTE(SUBSTITUTE(L155,"XXXX",O155),"HappyFace",IF(K155<>"",K155,"HappyFace")) -> <splitButton id="SPLI009" size="large" getVisible="getVisible" getEnabled="getEnabled">
A156: But_TienDoThiCong | B156: But_TienDoThiCong | C156: Tiến độ | G156: =+IF(ISNUMBER(C156),0,1) -> 1 | H156: 1 | I156: 1 | J156: 1 | K156: ShowSchedulingPage | L156: <button id="XXXX" onAction="onActionBUT" getLabel="getLabel" getScreentip="getScreentip" getSupertip="getSupertip" imageMso="HappyFace" getEnabled="getEnabled"/> | M156: BUTT | N156: =+COUNTIF($M$3:M156,M156) -> 114 | O156: But_TienDoThiCong | P156: <button id="But_TienDoThiCong" onAction="onActionBUT" getLabel="getLabel" getScreentip="getScreentip" getSupertip="getSupertip" imageMso="ShowSchedulingPage" getEnabled="getEnabled"/>
A157: MENU009 | G157: =+IF(ISNUMBER(C158),0,1) -> 1 | H157: 1 | I157: 1 | J157: 1 | L157: <menu id="XXXX" itemSize="normal" getLabel="getLabel" getScreentip="getScreentip" getSupertip="getSupertip" imageMso="HappyFace" getEnabled="getEnabled"> | M157: MENU | N157: =+COUNTIF($M$3:M157,M157) -> 9 | O157: MENU009 | P157: <menu id="MENU009" itemSize="normal" getLabel="getLabel" getScreentip="getScreentip" getSupertip="getSupertip" imageMso="HappyFace" getEnabled="getEnabled">
A158: Sel_TiendoThicong | B158: TiendoThicong | C158: Tiến độ thi công | G158: =+IF(ISNUMBER(C158),0,1) -> 1 | H158: 1 | I158: 1 | J158: 1 | K158: ShowSchedulingPage | L158: <button id="XXXX" onAction="onActionBUT" getVisible="getVisible" getLabel="getLabel" getScreentip="getScreentip" getSupertip="getSupertip" imageMso="HappyFace" getEnabled="getEnabled"/> | M158: BUTT | N158: =+COUNTIF($M$3:M158,M158) -> 115 | O158: Sel_TiendoThicong | P158: <button id="Sel_TiendoThicong" onAction="onActionBUT" getVisible="getVisible" getLabel="getLabel" getScreentip="getScreentip" getSupertip="getSupertip" imageMso="ShowSchedulingPage" getEnabled="getEnabled"/>
A159: Sel_Nhancong | B159: Nhancong | C159: Nhân công | G159: =+IF(ISNUMBER(C159),0,1) -> 1 | H159: 1 | I159: 1 | J159: 0 | K159: ChartPlotArea | L159: <button id="XXXX" onAction="onActionBUT" getVisible="getVisible" getLabel="getLabel" getScreentip="getScreentip" getSupertip="getSupertip" imageMso="HappyFace" getEnabled="getEnabled"/> | M159: BUTT | N159: =+COUNTIF($M$3:M159,M159) -> 116 | O159: Sel_Nhancong | P159: <button id="Sel_Nhancong" onAction="onActionBUT" getVisible="getVisible" getLabel="getLabel" getScreentip="getScreentip" getSupertip="getSupertip" imageMso="ChartPlotArea" getEnabled="getEnabled"/>
A160: Sel_Thietbi | B160: Thietbi | C160: Thiết bị | G160: =+IF(ISNUMBER(C160),0,1) -> 1 | H160: 1 | I160: 1 | J160: 0 | K160: ChartPlotArea | L160: <button id="XXXX" onAction="onActionBUT" getVisible="getVisible" getLabel="getLabel" getScreentip="getScreentip" getSupertip="getSupertip" imageMso="HappyFace" getEnabled="getEnabled"/> | M160: BUTT | N160: =+COUNTIF($M$3:M160,M160) -> 117 | O160: Sel_Thietbi | P160: <button id="Sel_Thietbi" onAction="onActionBUT" getVisible="getVisible" getLabel="getLabel" getScreentip="getScreentip" getSupertip="getSupertip" imageMso="ChartPlotArea" getEnabled="getEnabled"/>
C161: =+MAX($C$1:C160)+1 -> 173 | G161: =+IF(ISNUMBER(C161),0,1) -> 0 | L161: </menu> | O161: 000 | P161: </menu>
C162: =+MAX($C$1:C161)+1 -> 174 | G162: =+IF(ISNUMBER(C162),0,1) -> 0 | L162: </splitButton> | O162: 000 | P162: </splitButton>
A163: =+O163 -> But_CaiDatXem | B163: But_CaiDatXem | L163: <dialogBoxLauncher><button id="XXXX" onAction="onActionBUT"/></dialogBoxLauncher> | M163: BUTT | N163: =+COUNTIF($M$3:M163,M163) -> 118 | O163: But_CaiDatXem | P163: <dialogBoxLauncher><button id="But_CaiDatXem" onAction="onActionBUT"/></dialogBoxLauncher>
C164: =+MAX($C$1:C154)+1 -> 173 | G164: 0 | L164: </group> | O164: 000 | P164: </group>
A165: =+O165 -> GROU005 | C165: Xuất dữ liệu | D165: Xuất dữ liệu | G165: 1 | H165: 1 | I165: 1 | J165: 0 | L165: <group id="XXXX" getVisible="getVisible" getLabel="getLabel"> | M165: GROU | N165: =+COUNTIF($M$3:M165,M165) -> 5 | O165: GROU005 | P165: <group id="GROU005" getVisible="getVisible" getLabel="getLabel">
A166: =+O166 -> But_INBBNT | B166: But_INBBNT | C166: In biên bản | D166: In biên bản | G166: 1 | H166: 1 | I166: 1 | J166: 1 | K166: FilePrint | L166: <button id="XXXX" onAction="onActionBUT" getSize="getSize" getVisible="getVisible" getLabel="getLabel" getScreentip="getScreentip" getSupertip="getSupertip" imageMso="HappyFace" getEnabled="getEnabled"/> | M166: BUTT | N166: =+COUNTIF($M$3:M166,M166) -> 119 | O166: But_INBBNT | P166: <button id="But_INBBNT" onAction="onActionBUT" getSize="getSize" getVisible="getVisible" getLabel="getLabel" getScreentip="getScreentip" getSupertip="getSupertip" imageMso="FilePrint" getEnabled="getEnabled"/>
A167: But_XuatBBNTCVXD | B167: But_XuatBBNTCVXD | C167: Xuất Biên bản | D167: Xuất Biên bản | E167: Xuất biên bản ra PDF "đường dẫn file hiện tại\PDF\BienBan\" | G167: 1 | H167: 1 | I167: 1 | J167: 1 | K167: BlogPublish | L167: <button id="XXXX" onAction="onActionBUT" getSize="getSize" getVisible="getVisible" getLabel="getLabel" getScreentip="getScreentip" getSupertip="getSupertip" imageMso="HappyFace" getEnabled="getEnabled"/> | M167: BUTT | N167: =+COUNTIF($M$3:M167,M167) -> 120 | O167: But_XuatBBNTCVXD | P167: <button id="But_XuatBBNTCVXD" onAction="onActionBUT" getSize="getSize" getVisible="getVisible" getLabel="getLabel" getScreentip="getScreentip" getSupertip="getSupertip" imageMso="BlogPublish" getEnabled="getEnabled"/>
A168: But_Innhatky | B168: But_Innhatky | C168: Xuất Nhật ký | D168: Xuất Nhật ký | E168: Xuất Nhật ký ra PDF "đường dẫn file hiện tại\PDF\NhatKy\" | G168: 1 | H168: 1 | I168: 1 | J168: 1 | K168: UpgradePresentation | L168: <button id="XXXX" onAction="onActionBUT" getSize="getSize" getVisible="getVisible" getLabel="getLabel" getScreentip="getScreentip" getSupertip="getSupertip" imageMso="HappyFace" getEnabled="getEnabled"/> | M168: BUTT | N168: =+COUNTIF($M$3:M168,M168) -> 121 | O168: But_Innhatky | P168: <button id="But_Innhatky" onAction="onActionBUT" getSize="getSize" getVisible="getVisible" getLabel="getLabel" getScreentip="getScreentip" getSupertip="getSupertip" imageMso="UpgradePresentation" getEnabled="getEnabled"/>
A169: BUTT122 | C169: 213 | G169: 0 | H169: 1 | I169: 1 | J169: 1 | L169: <button id="XXXX" onAction="onActionBUT" getSize="getSize" getVisible="getVisible" getLabel="getLabel" getScreentip="getScreentip" getSupertip="getSupertip" imageMso="HappyFace" getEnabled="getEnabled"/> | M169: BUTT | N169: =+COUNTIF($M$3:M169,M169) -> 122 | O169: BUTT122 | P169: <button id="BUTT122" onAction="onActionBUT" getSize="getSize" getVisible="getVisible" getLabel="getLabel" getScreentip="getScreentip" getSupertip="getSupertip" imageMso="HappyFace" getEnabled="getEnabled"/>
A170: SPLI010 | C170: 214 | G170: =+IF(ISNUMBER(C171),0,1) -> 1 | H170: 1 | I170: 1 | J170: 1 | L170: <splitButton id="XXXX" size="large" getVisible="getVisible" getEnabled="getEnabled"> | M170: SPLI | N170: =+COUNTIF($M$3:M170,M170) -> 10 | O170: SPLI010 | P170: <splitButton id="SPLI010" size="large" getVisible="getVisible" getEnabled="getEnabled">
A171: But_XuatDanhMuc | B171: But_XuatDanhMuc | C171: Xuất List | G171: 1 | H171: 1 | I171: 1 | J171: 1 | K171: UpgradeDocument | L171: <button id="XXXX" onAction="onActionBUT" getLabel="getLabel" getScreentip="getScreentip" getSupertip="getSupertip" imageMso="HappyFace" getEnabled="getEnabled"/> | M171: BUTT | N171: =+COUNTIF($M$3:M171,M171) -> 123 | O171: But_XuatDanhMuc | P171: <button id="But_XuatDanhMuc" onAction="onActionBUT" getLabel="getLabel" getScreentip="getScreentip" getSupertip="getSupertip" imageMso="UpgradeDocument" getEnabled="getEnabled"/>
A172: MENU010 | C172: =+C171 -> Xuất List | G172: =+IF(ISNUMBER(C173),0,1) -> 1 | H172: 1 | I172: 1 | J172: 1 | L172: <menu id="XXXX" itemSize="normal" getLabel="getLabel" getScreentip="getScreentip" getSupertip="getSupertip" imageMso="HappyFace" getEnabled="getEnabled"> | M172: MENU | N172: =+COUNTIF($M$3:M172,M172) -> 10 | O172: MENU010 | P172: <menu id="MENU010" itemSize="normal" getLabel="getLabel" getScreentip="getScreentip" getSupertip="getSupertip" imageMso="HappyFace" getEnabled="getEnabled">
A173: But_TachListBBCVtoWord | B173: But_TachListBBCVtoWord | C173: Tách danh mục công việc xây dựng | G173: 1 | H173: 1 | I173: 1 | J173: 1 | K173: FileSaveAsWordDocx | L173: <button id="XXXX" onAction="onActionBUT" getVisible="getVisible" getLabel="getLabel" getScreentip="getScreentip" getSupertip="getSupertip" imageMso="HappyFace" getEnabled="getEnabled"/> | M173: BUTT | N173: =+COUNTIF($M$3:M173,M173) -> 124 | O173: =IF(B173<>"",IF(LEFT(B173,3)<>"But","Sel_"&B173,B173),M173&TEXT(N173,"000")) -> But_TachListBBCVtoWord | P173: =+SUBSTITUTE(SUBSTITUTE(L173,"XXXX",O173),"HappyFace",IF(K173<>"",K173,"HappyFace")) -> <button id="But_TachListBBCVtoWord" onAction="onActionBUT" getVisible="getVisible" getLabel="getLabel" getScreentip="getScreentip" getSupertip="getSupertip" imageMso="FileSaveAsWordDocx" getEnabled="getEnabled"/>
A174: But_TachListBBHT | B174: But_TachListBBHT | C174: Tách danh mục công việc hoàn thành | G174: 1 | H174: 1 | I174: 1 | J174: 1 | K174: FileSaveAsWordDocx | L174: <button id="XXXX" onAction="onActionBUT" getVisible="getVisible" getLabel="getLabel" getScreentip="getScreentip" getSupertip="getSupertip" imageMso="HappyFace" getEnabled="getEnabled"/> | M174: BUTT | N174: =+COUNTIF($M$3:M174,M174) -> 125 | O174: But_TachListBBHT | P174: <button id="But_TachListBBHT" onAction="onActionBUT" getVisible="getVisible" getLabel="getLabel" getScreentip="getScreentip" getSupertip="getSupertip" imageMso="FileSaveAsWordDocx" getEnabled="getEnabled"/>
A175: But_TachFileThinghiem | B175: But_TachFileThinghiem | C175: Tách danh mục thí nghiệm | G175: =+IF(ISNUMBER(C175),0,1) -> 1 | H175: 1 | I175: 1 | J175: 1 | K175: FileSaveAsWordDocx | L175: <button id="XXXX" onAction="onActionBUT" getVisible="getVisible" getLabel="getLabel" getScreentip="getScreentip" getSupertip="getSupertip" imageMso="HappyFace" getEnabled="getEnabled"/> | M175: BUTT | N175: =+COUNTIF($M$3:M175,M175) -> 126 | O175: But_TachFileThinghiem | P175: <button id="But_TachFileThinghiem" onAction="onActionBUT" getVisible="getVisible" getLabel="getLabel" getScreentip="getScreentip" getSupertip="getSupertip" imageMso="FileSaveAsWordDocx" getEnabled="getEnabled"/>
A176: But_TachNTVL | B176: But_TachNTVL | C176: Tách danh mục nghiệm thu vật liệu | G176: 1 | H176: 1 | I176: 1 | J176: 0 | K176: FileSaveAsWordDocx | L176: <button id="XXXX" onAction="onActionBUT" getVisible="getVisible" getLabel="getLabel" getScreentip="getScreentip" getSupertip="getSupertip" imageMso="HappyFace" getEnabled="getEnabled"/> | M176: BUTT | N176: =+COUNTIF($M$3:M176,M176) -> 127 | O176: But_TachNTVL | P176: <button id="But_TachNTVL" onAction="onActionBUT" getVisible="getVisible" getLabel="getLabel" getScreentip="getScreentip" getSupertip="getSupertip" imageMso="FileSaveAsWordDocx" getEnabled="getEnabled"/>
A177: But_TachNhatKy | B177: But_TachNhatKy | C177: Tách nhật ký | G177: 1 | H177: 1 | I177: 1 | J177: 0 | K177: FileSaveAsWordDocx | L177: <button id="XXXX" onAction="onActionBUT" getVisible="getVisible" getLabel="getLabel" getScreentip="getScreentip" getSupertip="getSupertip" imageMso="HappyFace" getEnabled="getEnabled"/> | M177: BUTT | N177: =+COUNTIF($M$3:M177,M177) -> 128 | O177: But_TachNhatKy | P177: <button id="But_TachNhatKy" onAction="onActionBUT" getVisible="getVisible" getLabel="getLabel" getScreentip="getScreentip" getSupertip="getSupertip" imageMso="FileSaveAsWordDocx" getEnabled="getEnabled"/>
A178: BUTT129 | C178: =+MAX($C$1:C177)+1 -> 215 | G178: 0 | H178: 1 | I178: 1 | J178: 0 | K178: FileSaveAsWordDocx | L178: <button id="XXXX" onAction="onActionBUT" getVisible="getVisible" getLabel="getLabel" getScreentip="getScreentip" getSupertip="getSupertip" imageMso="HappyFace" getEnabled="getEnabled"/> | M178: BUTT | N178: =+COUNTIF($M$3:M178,M178) -> 129 | O178: BUTT129 | P178: <button id="BUTT129" onAction="onActionBUT" getVisible="getVisible" getLabel="getLabel" getScreentip="getScreentip" getSupertip="getSupertip" imageMso="FileSaveAsWordDocx" getEnabled="getEnabled"/>
C179: =+MAX($C$1:C178)+1 -> 216 | G179: 0 | L179: </menu> | O179: 000 | P179: </menu>
C180: =+MAX($C$1:C179)+1 -> 217 | G180: 0 | L180: </splitButton> | O180: 000 | P180: </splitButton>
A181: =+O181 -> But_CaiDatXuatDuLieu | B181: But_CaiDatXuatDuLieu | L181: <dialogBoxLauncher><button id="XXXX" onAction="onActionBUT"/></dialogBoxLauncher> | M181: BUTT | N181: =+COUNTIF($M$3:M181,M181) -> 130 | O181: But_CaiDatXuatDuLieu | P181: <dialogBoxLauncher><button id="But_CaiDatXuatDuLieu" onAction="onActionBUT"/></dialogBoxLauncher>
C182: =+MAX($C$1:C180)+1 -> 218 | G182: 0 | L182: </group> | O182: 000 | P182: </group>
A183: =+O183 -> GROU006 | C183: Ẩn/ hiện | G183: =+IF(ISNUMBER(C183),0,1) -> 1 | H183: 1 | I183: 1 | J183: 0 | L183: <group id="XXXX" getVisible="getVisible" getLabel="getLabel"> | M183: GROU | N183: =+COUNTIF($M$3:M183,M183) -> 6 | O183: =IF(B183<>"",IF(LEFT(B183,3)<>"But","Sel_"&B183,B183),M183&TEXT(N183,"000")) -> GROU006 | P183: =+SUBSTITUTE(SUBSTITUTE(L183,"XXXX",O183),"HappyFace",IF(K183<>"",K183,"HappyFace")) -> <group id="GROU006" getVisible="getVisible" getLabel="getLabel">
A184: =+O184 -> But_HienNgayThang | B184: But_HienNgayThang | C184: Ngày tháng | D184: Hiển thị ngày tháng tại biên bản | E184: + ngày 01 tháng 01 năm 1900 + ngày …..tháng…...năm…...... | G184: 1 | H184: =+IF(setting!$B$3,1,0) -> 1 | I184: 1 | J184: 0 | K184: ViewAllProposals | L184: <button id="XXXX" onAction="onActionBUT" getSize="getSize" getVisible="getVisible" getLabel="getLabel" getScreentip="getScreentip" getSupertip="getSupertip" imageMso="HappyFace" getEnabled="getEnabled"/> | M184: BUTT | N184: =+COUNTIF($M$3:M184,M184) -> 131 | O184: =IF(B184<>"",IF(LEFT(B184,3)<>"But","Sel_"&B184,B184),M184&TEXT(N184,"000")) -> But_HienNgayThang | P184: =+SUBSTITUTE(SUBSTITUTE(L184,"XXXX",O184),"HappyFace",IF(K184<>"",K184,"HappyFace")) -> <button id="But_HienNgayThang" onAction="onActionBUT" getSize="getSize" getVisible="getVisible" getLabel="getLabel" getScreentip="getScreentip" getSupertip="getSupertip" imageMso="ViewAllProposals" getEnabled="getEnabled"/>
A185: But_HienSTT | B185: But_HienSTT | C185: Số biên bản | D185: Hiển thị số biên bản | E185: + Số: 01/NTCV + Số:…../NTCV | G185: 1 | H185: =+IF(setting!$B$3,1,0) -> 1 | I185: 1 | J185: 0 | K185: TripaneViewMode | L185: <button id="XXXX" onAction="onActionBUT" getSize="getSize" getVisible="getVisible" getLabel="getLabel" getScreentip="getScreentip" getSupertip="getSupertip" imageMso="HappyFace" getEnabled="getEnabled"/> | M185: BUTT | N185: =+COUNTIF($M$3:M185,M185) -> 132 | O185: But_HienSTT | P185: <button id="But_HienSTT" onAction="onActionBUT" getSize="getSize" getVisible="getVisible" getLabel="getLabel" getScreentip="getScreentip" getSupertip="getSupertip" imageMso="TripaneViewMode" getEnabled="getEnabled"/>
A186: But_HienTienDo | B186: But_HienTienDo | C186: Tiến độ | D186: Hiển thị tiến độ | E186: Hiển thị đường tiến độ tại sheet tiến độ | G186: 1 | H186: =+IF(setting!$B$3,1,0) -> 1 | I186: 1 | J186: 0 | K186: ShowSchedulingPage | L186: <button id="XXXX" onAction="onActionBUT" getSize="getSize" getVisible="getVisible" getLabel="getLabel" getScreentip="getScreentip" getSupertip="getSupertip" imageMso="HappyFace" getEnabled="getEnabled"/> | M186: BUTT | N186: =+COUNTIF($M$3:M186,M186) -> 133 | O186: But_HienTienDo | P186: <button id="But_HienTienDo" onAction="onActionBUT" getSize="getSize" getVisible="getVisible" getLabel="getLabel" getScreentip="getScreentip" getSupertip="getSupertip" imageMso="ShowSchedulingPage" getEnabled="getEnabled"/>
A187: But_CaiDatAnHien | B187: But_CaiDatAnHien | L187: <dialogBoxLauncher><button id="XXXX" onAction="onActionBUT"/></dialogBoxLauncher> | M187: BUTT | N187: =+COUNTIF($M$3:M187,M187) -> 134 | O187: But_CaiDatAnHien | P187: <dialogBoxLauncher><button id="But_CaiDatAnHien" onAction="onActionBUT"/></dialogBoxLauncher>
C188: =+MAX($C$1:C183)+1 -> 219 | G188: 0 | L188: </group> | O188: 000 | P188: </group>
A189: =+O189 -> GROU007 | C189: Khác | G189: 1 | H189: 1 | I189: 1 | J189: 0 | L189: <group id="XXXX" getVisible="getVisible" getLabel="getLabel"> | M189: GROU | N189: =+COUNTIF($M$3:M189,M189) -> 7 | O189: GROU007 | P189: <group id="GROU007" getVisible="getVisible" getLabel="getLabel">
A190: =+O190 -> But_Truoc | B190: But_Truoc | C190: Trước | D190: =+C190 -> Trước | E190: Đi đến biên bản trước | G190: =+IF(ISNUMBER(C190),0,1) -> 1 | H190: =+IF(setting!$B$4,1,0) -> 1 | I190: 1 | J190: 1 | K190: FillLeft | L190: <button id="XXXX" onAction="onActionBUT" getSize="getSize" getVisible="getVisible" getLabel="getLabel" getScreentip="getScreentip" getSupertip="getSupertip" imageMso="HappyFace" getEnabled="getEnabled"/> | M190: BUTT | N190: =+COUNTIF($M$3:M190,M190) -> 135 | O190: =IF(B190<>"",IF(LEFT(B190,3)<>"But","Sel_"&B190,B190),M190&TEXT(N190,"000")) -> But_Truoc | P190: =+SUBSTITUTE(SUBSTITUTE(L190,"XXXX",O190),"HappyFace",IF(K190<>"",K190,"HappyFace")) -> <button id="But_Truoc" onAction="onActionBUT" getSize="getSize" getVisible="getVisible" getLabel="getLabel" getScreentip="getScreentip" getSupertip="getSupertip" imageMso="FillLeft" getEnabled="getEnabled"/> | R190: FillUp | S190: lên | T190: FillLeft | U190: trái
A191: =+O191 -> But_Sau | B191: But_Sau | C191: Sau | D191: =+C191 -> Sau | E191: Đi đến biên bản sau | G191: 1 | H191: =+IF(setting!$B$4,1,0) -> 1 | I191: 1 | J191: 1 | K191: FillRight | L191: <button id="XXXX" onAction="onActionBUT" getSize="getSize" getVisible="getVisible" getLabel="getLabel" getScreentip="getScreentip" getSupertip="getSupertip" imageMso="HappyFace" getEnabled="getEnabled"/> | M191: BUTT | N191: =+COUNTIF($M$3:M193,M191) -> 138 | O191: =IF(B191<>"",IF(LEFT(B191,3)<>"But","Sel_"&B191,B191),M191&TEXT(N191,"000")) -> But_Sau | P191: =+SUBSTITUTE(SUBSTITUTE(L191,"XXXX",O191),"HappyFace",IF(K191<>"",K191,"HappyFace")) -> <button id="But_Sau" onAction="onActionBUT" getSize="getSize" getVisible="getVisible" getLabel="getLabel" getScreentip="getScreentip" getSupertip="getSupertip" imageMso="FillRight" getEnabled="getEnabled"/> | R191: FillMenu | S191: xuống | T191: FillRight | U191: phải
A192: =+O192 -> But_Folder | B192: But_Folder | C192: Thư mục ảnh | D192: =+C192 -> Thư mục ảnh | E192: Chỉnh sửa đường dẫn thư mục ảnh, nếu lỗi chương trình sẽ lấy "đường dẫn file hiện tại\HinhAnh\" | G192: 1 | H192: =+IF(setting!$B$2,1,0) -> 0 | I192: 1 | J192: 0 | K192: MoveToFolder | L192: <button id="XXXX" onAction="onActionBUT" getSize="getSize" getVisible="getVisible" getLabel="getLabel" getScreentip="getScreentip" getSupertip="getSupertip" imageMso="HappyFace" getEnabled="getEnabled"/> | M192: BUTT | N192: =+COUNTIF($M$3:M192,M192) -> 137 | O192: But_Folder | P192: <button id="But_Folder" onAction="onActionBUT" getSize="getSize" getVisible="getVisible" getLabel="getLabel" getScreentip="getScreentip" getSupertip="getSupertip" imageMso="MoveToFolder" getEnabled="getEnabled"/>
A193: But_CapNhat | B193: But_CapNhat | C193: Cập nhật | D193: =+C193 -> Cập nhật | E193: + Cập nhật chiều cao dòng Thông tin công trình tại các biên bản + Cập nhật chiều cao dòng, dữ liệu công việc tại các biên bản | G193: 1 | H193: =+IF(setting!$B$3,1,0) -> 1 | I193: 1 | J193: 0 | K193: RecurrenceEdit | L193: <button id="XXXX" onAction="onActionBUT" getSize="getSize" getVisible="getVisible" getLabel="getLabel" getScreentip="getScreentip" getSupertip="getSupertip" imageMso="HappyFace" getEnabled="getEnabled"/> | M193: BUTT | N193: =+COUNTIF($M$3:M193,M193) -> 138 | O193: But_CapNhat | P193: <button id="But_CapNhat" onAction="onActionBUT" getSize="getSize" getVisible="getVisible" getLabel="getLabel" getScreentip="getScreentip" getSupertip="getSupertip" imageMso="RecurrenceEdit" getEnabled="getEnabled"/>
A194: =+O194 -> But_Setting | B194: But_Setting | C194: Cài đặt | G194: =+IF(ISNUMBER(C194),0,1) -> 1 | H194: =+IF(setting!$B$3,1,0) -> 1 | I194: 1 | J194: 0 | K194: AddInManager | L194: <button id="XXXX" onAction="onActionBUT" getSize="getSize" getVisible="getVisible" getLabel="getLabel" getScreentip="getScreentip" getSupertip="getSupertip" imageMso="HappyFace" getEnabled="getEnabled"/> | M194: BUTT | N194: =+COUNTIF($M$3:M194,M194) -> 139 | O194: =IF(B194<>"",IF(LEFT(B194,3)<>"But","Sel_"&B194,B194),M194&TEXT(N194,"000")) -> But_Setting | P194: =+SUBSTITUTE(SUBSTITUTE(L194,"XXXX",O194),"HappyFace",IF(K194<>"",K194,"HappyFace")) -> <button id="But_Setting" onAction="onActionBUT" getSize="getSize" getVisible="getVisible" getLabel="getLabel" getScreentip="getScreentip" getSupertip="getSupertip" imageMso="AddInManager" getEnabled="getEnabled"/>
A195: =+O195 -> But_Merge | B195: But_Merge | C195: Gộp ô | D195: =+C195 -> Gộp ô | E195: Gộp ô và canh trái | G195: =+IF(ISNUMBER(C195),0,1) -> 1 | H195: =+IF(setting!$B$3,1,0) -> 1 | I195: 1 | J195: 0 | K195: MergeCellsAcross | L195: <button id="XXXX" onAction="onActionBUT" getSize="getSize" getVisible="getVisible" getLabel="getLabel" getScreentip="getScreentip" getSupertip="getSupertip" imageMso="HappyFace" getEnabled="getEnabled"/> | M195: BUTT | N195: =+COUNTIF($M$3:M195,M195) -> 140 | O195: =IF(B195<>"",IF(LEFT(B195,3)<>"But","Sel_"&B195,B195),M195&TEXT(N195,"000")) -> But_Merge | P195: =+SUBSTITUTE(SUBSTITUTE(L195,"XXXX",O195),"HappyFace",IF(K195<>"",K195,"HappyFace")) -> <button id="But_Merge" onAction="onActionBUT" getSize="getSize" getVisible="getVisible" getLabel="getLabel" getScreentip="getScreentip" getSupertip="getSupertip" imageMso="MergeCellsAcross" getEnabled="getEnabled"/>
A196: =+O196 -> But_Preeze | B196: But_Preeze | C196: Cố định | D196: =+C196 -> Cố định | E196: Cố định ô | G196: =+IF(ISNUMBER(C196),0,1) -> 1 | H196: =+IF(setting!$B$3,1,0) -> 1 | I196: 1 | J196: 0 | K196: ViewFreezePanesGallery | L196: <button id="XXXX" onAction="onActionBUT" getSize="getSize" getVisible="getVisible" getLabel="getLabel" getScreentip="getScreentip" getSupertip="getSupertip" imageMso="HappyFace" getEnabled="getEnabled"/> | M196: BUTT | N196: =+COUNTIF($M$3:M216,M196) -> 159 | O196: =IF(B196<>"",IF(LEFT(B196,3)<>"But","Sel_"&B196,B196),M196&TEXT(N196,"000")) -> But_Preeze | P196: =+SUBSTITUTE(SUBSTITUTE(L196,"XXXX",O196),"HappyFace",IF(K196<>"",K196,"HappyFace")) -> <button id="But_Preeze" onAction="onActionBUT" getSize="getSize" getVisible="getVisible" getLabel="getLabel" getScreentip="getScreentip" getSupertip="getSupertip" imageMso="ViewFreezePanesGallery" getEnabled="getEnabled"/>
A197: MENU011 | C197: Tiện ích | G197: =+IF(ISNUMBER(C198),0,1) -> 1 | H197: 1 | I197: 1 | J197: 1 | L197: <menu id="XXXX" itemSize="normal" getLabel="getLabel" getScreentip="getScreentip" getSupertip="getSupertip" imageMso="HappyFace" getEnabled="getEnabled"> | M197: MENU | N197: =+COUNTIF($M$3:M197,M197) -> 11 | O197: MENU011 | P197: <menu id="MENU011" itemSize="normal" getLabel="getLabel" getScreentip="getScreentip" getSupertip="getSupertip" imageMso="HappyFace" getEnabled="getEnabled">
A198: But_TienIch1 | B198: But_TienIch1 | C198: Xóa ảnh minh họa | G198: =+IF(ISNUMBER(C198),0,1) -> 1 | H198: 1 | I198: 1 | J198: 1 | K198: _1 | L198: <button id="XXXX" onAction="onActionBUT" getVisible="getVisible" getLabel="getLabel" getScreentip="getScreentip" getSupertip="getSupertip" imageMso="HappyFace" getEnabled="getEnabled"/> | M198: BUTT | N198: =+COUNTIF($M$3:M198,M198) -> 142 | O198: But_TienIch1 | P198: <button id="But_TienIch1" onAction="onActionBUT" getVisible="getVisible" getLabel="getLabel" getScreentip="getScreentip" getSupertip="getSupertip" imageMso="_1" getEnabled="getEnabled"/>
A199: But_TienIch2 | B199: But_TienIch2 | C199: Quản lý tên | D199: Quản lý tên | E199: Ẩn/ Hiện/ Xóa Tên lỗi, Tên liên kết ngoài | G199: 1 | H199: 1 | I199: 1 | J199: 1 | K199: _2 | L199: <button id="XXXX" onAction="onActionBUT" getVisible="getVisible" getLabel="getLabel" getScreentip="getScreentip" getSupertip="getSupertip" imageMso="HappyFace" getEnabled="getEnabled"/> | M199: BUTT | N199: =+COUNTIF($M$3:M199,M199) -> 143 | O199: But_TienIch2 | P199: <button id="But_TienIch2" onAction="onActionBUT" getVisible="getVisible" getLabel="getLabel" getScreentip="getScreentip" getSupertip="getSupertip" imageMso="_2" getEnabled="getEnabled"/>
A200: But_TienIch3 | B200: But_TienIch3 | C200: Ngừng/Chạy chương trình | G200: 1 | H200: 1 | I200: 1 | J200: 0 | K200: _3 | L200: <button id="XXXX" onAction="onActionBUT" getVisible="getVisible" getLabel="getLabel" getScreentip="getScreentip" getSupertip="getSupertip" imageMso="HappyFace" getEnabled="getEnabled"/> | M200: BUTT | N200: =+COUNTIF($M$3:M200,M200) -> 144 | O200: But_TienIch3 | P200: <button id="But_TienIch3" onAction="onActionBUT" getVisible="getVisible" getLabel="getLabel" getScreentip="getScreentip" getSupertip="getSupertip" imageMso="_3" getEnabled="getEnabled"/>
... 69 more rows

Sheet setting
A1: TAB | B1: TRUE | C1: 0 | D1: ⬜☑☒✓☓✖★☆◀ ▶ Ω℧⌀⍺⍴⍵π±½¼∞≈÷~≤≠≥⏀∆‰
A2: Thư mục ảnh | B2: FALSE | C2: 1
A3: Cập nhật | B3: TRUE | C3: 2
A4: Trước sau | B4: TRUE | C4: 3
A5: Tiến độ | B5: TRUE | C5: 4
A6: ngày tháng | B6: FALSE | C6: 5
A7: số biên bản | B7: TRUE | C7: 6
G368: 0
G369: 0 | H369: 0
H370: 0
H371: 0

Sheet Helpsheet
A1: CÁC CHỨC NĂNG CHÍNH CỦA CHƯƠNG TRÌNH: | B1: CÁC CHỨC NĂNG CHÍNH CỦA CHƯƠNG TRÌNH: Chương trình này dùng để quản lý lập biên bản nghiệm thu công việc xây dựng: ( Gồm có 5 bước) 1- Khai báo thông tin ( Công trình; Hợp đồng; Chủ đầu tư; Đơn vị thiết kế; Đơn vị thi công; Đơn vị thí nghiệm) 2- Dữ liệu đầu vào 3- Lên kế hoạch thi công 4- Xuất biên bản nghiệm thu 5- Xuất nhật ký thi công.
A2: I - THÔNG TIN CÔNG TRÌNH: | B2: THÔNG TIN CÔNG TRÌNH: Click Công trình ---> Thông tin công trình 1- Khai báo thông tin ( Công trình; Hợp đồng; Chủ đầu tư; Đơn vị thiết kế; Đơn vị thi công; Đơn vị thí nghiệm) BAO GỒM: 1. Thông tin công trình: - Tên công trình: - Tên gói thầu: - Địa điểm xây dựng: 2. Thông tin về hợp đồng: (Số: .../HĐXD ... , ngày ... tháng ... năm ...) 3. Thông tin chủ đầu tư: (Tên chủ đầu tư) 4. Thông tin đơn vị thiết kế ( Tên đơn vị thiết kế) 5. Ngày phê duyệt bản vẽ thi công 6. Thông tin đơn vị giám sát (Tên đơn vị giám sát, Tên và chức vụ của người giám sát) 7. Thông tin đơn vị thi công ( Tên đơn vị thi công, Tên và chức vụ của KCS, Chỉ huy trưởng, Cán bộ kỹ thuật, Người phát phiếu yêu cầu nghiệm thu) 8. Thông tin đơn vị thí nghiệm ( Tên phòng thí nghiệm, Tên và chức vụ của người thí nghiệm)
A3: II - DỮ LIỆU CÔNG TRÌNH: | B3: DỮ LIỆU CÔNG TRÌNH Click Công trình ----> Dữ liệu đầu vào 1. Nhập ngày nhận mặt bằng 2. Nhập ngày bắt đầu thi công 3. Nhập ngày không thi công ( Ngày nghỉ lễ, ngày mưa trong quá trình thi công)
A4: III - LẬP KẾ HOẠCH THI CÔNG: | B4: LẬP KẾ HOẠCH THI CÔNG: Click Nhật trình công việc -->Click vào "Tạo mới" để tạo công trình mới ( Đối với công trình mới) Thao tác với Sheet("Nhattrinh") *) Chọn mã hiệu công việc 1. Công tác chuẩn bị ( Phần này tên nội dung công việc được đặt mặc định): Điều chỉnh ngày và công việc lại cho hợp lý 2. Công tác thi công: Quy trình nhập liệu: - Mã hiệu, nội dung công việc nghiệm thu: + Click chuột trái vào côt B ---> hiện form Mã hiệu công việc. + Để chọn nhanh 1 mã công việc: Tại dòng tìm kiếm đánh tên đại diện của công việc (Ví dụ muốn chọn mã đất: Tại dòng tìm kiếm đánh chữ đất thì tất cả các mã liên quan đến từ đất được lọc ra). Chọn mã công việc thích hợp, hiệu chỉnh lại mã tiêu chuẩn nghiệm thu, mã thí nghiệm (Nếu cần) sau đó bấm nút "Chấp nhận" - Cách ghi mã công việc + Khi chọn xong mã công việc tại Form Tại phần nội dung công việc ta chỉnh sửa lại tên công việc cho phù hợp với tên công việc cụ thể của từng công trình + Có thẻ hiệu chỉnh mã hiệu tiêu chuẩn, mã hiệu thí nghiệm bằng cách Click vào Cột K, Cột L để hiện Form + Nhập vị trí xây dựng trên công trình + Nhập ngày bắt đầu, ngày kết thúc (Đối với mã hiệu thi công hoặc lấy mẫu) + Nhập ngày nghiệm thu nội bộ ( Đối với mã nghiệm thu) Ghi chú: - Đối với mã thi công thì không có ngày nghiệm thu (Nội bộ, PYC, NTCV) - Đối với nghiệm thu thì không có ngày bắt đầu thi công, kết thúc thi công - Sau khi nhập xong tất cả các mã công việc của công trình. a) Kiểm tra ngày thi công: Từ Menu HSQLCL ---> Click vào nút kiểm tra ngày thi công. Nếu ô bị bôi xanh và chữ gạch giữa tức là ngày nghiệm thu trùng với ngày nghỉ đã khai báo tại dữ liệu đầu vào. Điều chỉnh lại ngày cho hợp lý (Nên tâng ngày thi công lên để kéo dài thời gian thi công ra. Vì tất cả các ngày với ngày nghỉ sẽ không được tính trong thời gian thi công và trong phần xuất ra nhật ký sẽ ghi là Công trình nghỉ không thi công). b) Xuất dữ liệu biên bản: Từ Menu HSQLCL ---> Click Xuất dữ liệu biên bản + Chọn xuất theo hạng mục: Số thứ tự của biên bản được xắp xếp theo trình tự Nhật trình công việc + Chọn xuất theo ngày thi công được xắp xếp theo ngày nghiệm thu (Từ nhỏ đến lớn) c) Xuất dữ liệu nhật ký: Từ Menu HSQLCL ---> Click Xuất dữ liệu nhật ký ( Kết thúc quá trình Lập kế hoạch thi công)
A5: IV - TÁCH FILE THÀNH FILE MỚI | B5: TÁCH FILE: -Từ Menu HSQLCL ---> Click nút "Tách List biên bản" -->Chọn loại file cần tách ---> Chọn đường dẫn lưu Có 3 loại gồm + List biên bản nghiệm thu công việc xây dựng ( Phục vụ cho trộn dữ liệu từ Execl sang Word) + Biên bản hoàn thành hạng mục ( Phục vụ cho trộn dữ liệu từ Execl sang Word) + List thí nghiệm (Gửi đơn vị thí nghiệm )
A6: IV - XUẤT BIÊN BẢN NGHIỆM THU VÀ BIÊN BẢN NGHIỆM THU: | B6: XUẤT BIÊN BẢN NGHIỆM THU: -Từ Menu HSQLCL ---> Click nút "Xuất biên bản ra file Pdf" - Biên bản nghiệm thu được xuất dưới dạng file Pdf và được lưu vào thư mục chứa file chương trình.
A7: VI- XUẤT NHẬT KÝ THI CÔNG | B7: Từ Menu HSQLCL ---> Click "Xuất nhật ký ra file Pdf"

Sheet Nhattrinh
